Workbook

Sheet Sheet1
A1: 柳州职业技术大学2025届全日制专科毕业生毕业资格审核表
A2: 填表说明： 1.第6、7、8行是填写模板。 2.学号、姓名的信息从《学信网2025届全日制专科学生信息基础数据》表中按照班级筛选并粘贴。 3.必修课不及格门数填写学生到统计数据为止成绩未达到60分的课程总门数，如李四只有《大学生安全教育》课程不及格，其他课程成绩合格，那么李四必修课不及格门数填写“1”；选修课已修学分填写学生到统计数据为止总共修得的学分，如李四共修公共选修课两门（一门课程学分为2分，另一门课程学分3分）并且成绩合格，那么李四选课程已修学分为“5”。 4.第二课堂学分和诚信分填写具体获得的分数，若第二课堂学分>=120，填写“是”，若＜填“否”；诚信分>=1800，填写“是”，若＜填“否”。 德育审查如有仍未解除的，填写“否”，如没有违纪记录的，在“违纪处分是否解除”栏划斜线“/”。德育审查结果不能留空。 5.假若学生“必修课程不及格门数”为“0”、“选修课已修学分”总分15分、“第二课堂学分>=120”、“诚信分>=1800”都填写“是”，则学生达到毕业要求，在“是否达到毕业资格”填写“是”，若以上条件有一列未达到要求，请填写“否”； 6.请如实填写“欠费金额”。 7.上交纸质材料的时候二级学院要盖公章，电子档不需要盖电子章，但是要如实填写上报日期、专业要与《学信网2025届全日制专科学生信息基础数据》专业名称一致。 8.结业原因填写序号：①必修课未通过②选修课未达标③综合素质考评不达标（综合素质包括第二课堂活动分、诚信分及德育审查项目）
A3: 二级学院（盖章）：贸易与旅游管理学院 应毕业人数： 484 毕业人数： 结业人数： 填表日期：
A4: 序号 | B4: 专业名称 | C4: 班别 | D4: 学号 | E4: 学生姓名 | F4: 必修课不及格门数 | G4: 必修课不及格具体课程名称 | H4: 是否已修四史课 | I4: 选修课 总学分 | J4: 第二课堂活动分 | L4: 诚信分 | N4: 德育审查 | P4: 是否达到毕业要求 | Q4: 毕结业 结论 | R4: 欠费金额 | S4: 结业 原因
J5: 分数 | K5: 是否≥120 | L5: 分数 | M5: 是否≥1800 | N5: 是否有违纪处分 | O5: 违纪处分是否解除
A6: 1 | B6: 电子商务 | C6: 1 | D6: 20190310045 | E6: 罗永秀 | F6: 3 | G6: 营销基础、习近平新时代中国特色社会主义思想概论、网页开发与设计 | H6: 是 | I6: 42 | J6: =VLOOKUP(D6,[1]sheet1!$A:$C,3,0) -> 336 | K6: 是 | L6: =VLOOKUP(D6,[1]sheet1!$A$1:$C$293,2,0) -> 3120 | M6: 是 | N6: 否 | O6: / | P6: 否 | Q6: 结业 | R6: ¥0.00 | S6: 1
A7: 2 | B7: 电子商务 | C7: 1 | D7: 20210606085 | E7: 陈广 | F7: 3 | G7: 习近平新时代中国特色社会主义思想概论 | H7: 是 | I7: 41 | J7: =VLOOKUP(D7,[1]sheet1!$A:$C,3,0) -> 301 | K7: 是 | L7: =VLOOKUP(D7,[1]sheet1!$A$1:$C$293,2,0) -> 1850 | M7: 是 | N7: 是 | O7: 是 | P7: 否 | Q7: 结业 | R7: ¥0.00 | S7: 1
A8: 3 | B8: 电子商务 | C8: 1 | D8: 20210606180 | E8: 徐宗才 | F8: 1 | G8: 习近平新时代中国特色社会主义思想概论 | H8: 是 | I8: 35 | J8: =VLOOKUP(D8,[1]sheet1!$A:$C,3,0) -> 312 | K8: 是 | L8: =VLOOKUP(D8,[1]sheet1!$A$1:$C$293,2,0) -> 1970 | M8: 是 | N8: 否 | O8: / | P8: 否 | Q8: 结业 | R8: ¥0.00 | S8: 1
A9: 4 | B9: 电子商务 | C9: 1 | D9: 20220606138 | E9: 官蝶兰 | F9: 0 | G9: 无 | H9: 是 | I9: 42.5 | J9: =VLOOKUP(D9,[1]sheet1!$A:$C,3,0) -> 365 | K9: 是 | L9: =VLOOKUP(D9,[1]sheet1!$A$1:$C$293,2,0) -> 2680 | M9: 是 | N9: 否 | O9: / | P9: 是 | Q9: 毕业 | R9: ¥0.00
A10: 5 | B10: 电子商务 | C10: 1 | D10: 20220606149 | E10: 杨皓然 | F10: 0 | G10: 无 | H10: 是 | I10: 43.5 | J10: =VLOOKUP(D10,[1]sheet1!$A:$C,3,0) -> 243 | K10: 是 | L10: =VLOOKUP(D10,[1]sheet1!$A$1:$C$293,2,0) -> 2390 | M10: 是 | N10: 否 | O10: / | P10: 是 | Q10: 毕业 | R10: ¥0.00
A11: 6 | B11: 电子商务 | C11: 1 | D11: 20220606148 | E11: 王敬轩 | F11: 0 | G11: 无 | H11: 是 | I11: 40.5 | J11: =VLOOKUP(D11,[1]sheet1!$A:$C,3,0) -> 277 | K11: 是 | L11: =VLOOKUP(D11,[1]sheet1!$A$1:$C$293,2,0) -> 2620 | M11: 是 | N11: 否 | O11: / | P11: 是 | Q11: 毕业 | R11: ¥0.00
A12: 7 | B12: 电子商务 | C12: 1 | D12: 20220606152 | E12: 许兆蒴 | F12: 0 | G12: 无 | H12: 是 | I12: 45.5 | J12: =VLOOKUP(D12,[1]sheet1!$A:$C,3,0) -> 436 | K12: 是 | L12: =VLOOKUP(D12,[1]sheet1!$A$1:$C$293,2,0) -> 2580 | M12: 是 | N12: 否 | O12: / | P12: 是 | Q12: 毕业 | R12: ¥0.00
A13: 8 | B13: 电子商务 | C13: 1 | D13: 20220606022 | E13: 黄千芸 | F13: 0 | G13: 无 | H13: 是 | I13: 44.5 | J13: =VLOOKUP(D13,[1]sheet1!$A:$C,3,0) -> 294 | K13: 是 | L13: =VLOOKUP(D13,[1]sheet1!$A$1:$C$293,2,0) -> 2570 | M13: 是 | N13: 否 | O13: / | P13: 是 | Q13: 毕业 | R13: ¥0.00
A14: 9 | B14: 电子商务 | C14: 1 | D14: 20220606004 | E14: 刘昕元 | F14: 1 | G14: 职场英语 | H14: 是 | I14: 39.5 | J14: =VLOOKUP(D14,[1]sheet1!$A:$C,3,0) -> 229 | K14: 是 | L14: =VLOOKUP(D14,[1]sheet1!$A$1:$C$293,2,0) -> 1940 | M14: 是 | N14: 否 | O14: / | P14: 否 | Q14: 结业 | R14: ¥0.00 | S14: 1
A15: 10 | B15: 电子商务 | C15: 1 | D15: 20220606061 | E15: 王月妮 | F15: 0 | G15: 无 | H15: 是 | I15: 41.5 | J15: =VLOOKUP(D15,[1]sheet1!$A:$C,3,0) -> 352 | K15: 是 | L15: =VLOOKUP(D15,[1]sheet1!$A$1:$C$293,2,0) -> 3050 | M15: 是 | N15: 否 | O15: / | P15: 是 | Q15: 毕业 | R15: ¥0.00
A16: 11 | B16: 电子商务 | C16: 1 | D16: 20220606109 | E16: 简俊铃 | F16: 0 | G16: 无 | H16: 是 | I16: 44.5 | J16: =VLOOKUP(D16,[1]sheet1!$A:$C,3,0) -> 345 | K16: 是 | L16: =VLOOKUP(D16,[1]sheet1!$A$1:$C$293,2,0) -> 2010 | M16: 是 | N16: 否 | O16: / | P16: 是 | Q16: 毕业 | R16: ¥0.00
A17: 12 | B17: 电子商务 | C17: 1 | D17: 20220606134 | E17: 张思琪 | F17: 0 | G17: 无 | H17: 是 | I17: 43.5 | J17: =VLOOKUP(D17,[1]sheet1!$A:$C,3,0) -> 309 | K17: 是 | L17: =VLOOKUP(D17,[1]sheet1!$A$1:$C$293,2,0) -> 3300 | M17: 是 | N17: 否 | O17: / | P17: 是 | Q17: 毕业 | R17: ¥0.00
A18: 13 | B18: 电子商务 | C18: 1 | D18: 20220606141 | E18: 韦平军 | F18: 0 | G18: 无 | H18: 是 | I18: 45.5 | J18: =VLOOKUP(D18,[1]sheet1!$A:$C,3,0) -> 277 | K18: 是 | L18: =VLOOKUP(D18,[1]sheet1!$A$1:$C$293,2,0) -> 2290 | M18: 是 | N18: 否 | O18: / | P18: 是 | Q18: 毕业 | R18: ¥0.00
A19: 14 | B19: 电子商务 | C19: 1 | D19: 20220606133 | E19: 李欣 | F19: 0 | G19: 无 | H19: 是 | I19: 41.5 | J19: =VLOOKUP(D19,[1]sheet1!$A:$C,3,0) -> 469 | K19: 是 | L19: =VLOOKUP(D19,[1]sheet1!$A$1:$C$293,2,0) -> 3530 | M19: 是 | N19: 否 | O19: / | P19: 是 | Q19: 毕业 | R19: ¥0.00
A20: 15 | B20: 电子商务 | C20: 1 | D20: 20220606002 | E20: 黄伟恒 | F20: 0 | G20: 无 | H20: 是 | I20: 43.5 | J20: =VLOOKUP(D20,[1]sheet1!$A:$C,3,0) -> 308 | K20: 是 | L20: =VLOOKUP(D20,[1]sheet1!$A$1:$C$293,2,0) -> 2420 | M20: 是 | N20: 否 | O20: / | P20: 是 | Q20: 毕业 | R20: ¥0.00
A21: 16 | B21: 电子商务 | C21: 1 | D21: 20220606020 | E21: 莫月珍 | F21: 0 | G21: 无 | H21: 是 | I21: 39.5 | J21: =VLOOKUP(D21,[1]sheet1!$A:$C,3,0) -> 396 | K21: 是 | L21: =VLOOKUP(D21,[1]sheet1!$A$1:$C$293,2,0) -> 2180 | M21: 是 | N21: 否 | O21: / | P21: 是 | Q21: 毕业 | R21: ¥0.00
A22: 17 | B22: 电子商务 | C22: 1 | D22: 20220606012 | E22: 覃佩娱 | F22: 0 | G22: 无 | H22: 是 | I22: 46.5 | J22: =VLOOKUP(D22,[1]sheet1!$A:$C,3,0) -> 264 | K22: 是 | L22: =VLOOKUP(D22,[1]sheet1!$A$1:$C$293,2,0) -> 2220 | M22: 是 | N22: 否 | O22: / | P22: 是 | Q22: 毕业 | R22: ¥0.00
A23: 18 | B23: 电子商务 | C23: 1 | D23: 20220606063 | E23: 覃茜维 | F23: 0 | G23: 无 | H23: 是 | I23: 43.5 | J23: =VLOOKUP(D23,[1]sheet1!$A:$C,3,0) -> 436 | K23: 是 | L23: =VLOOKUP(D23,[1]sheet1!$A$1:$C$293,2,0) -> 3340 | M23: 是 | N23: 否 | O23: / | P23: 是 | Q23: 毕业 | R23: ¥0.00
A24: 19 | B24: 电子商务 | C24: 1 | D24: 20220606101 | E24: 王佳琪 | F24: 0 | G24: 无 | H24: 是 | I24: 41.5 | J24: =VLOOKUP(D24,[1]sheet1!$A:$C,3,0) -> 455 | K24: 是 | L24: =VLOOKUP(D24,[1]sheet1!$A$1:$C$293,2,0) -> 3280 | M24: 是 | N24: 否 | O24: / | P24: 是 | Q24: 毕业 | R24: ¥0.00
A25: 20 | B25: 电子商务 | C25: 1 | D25: 20220111029 | E25: 张译骞 | F25: 0 | G25: 无 | H25: 是 | I25: 43.5 | J25: =VLOOKUP(D25,[1]sheet1!$A:$C,3,0) -> 229 | K25: 是 | L25: =VLOOKUP(D25,[1]sheet1!$A$1:$C$293,2,0) -> 1920 | M25: 是 | N25: 否 | O25: / | P25: 是 | Q25: 毕业 | R25: ¥0.00
A26: 21 | B26: 电子商务 | C26: 1 | D26: 20220606007 | E26: 刘海琪 | F26: 0 | G26: 无 | H26: 是 | I26: 48.5 | J26: =VLOOKUP(D26,[1]sheet1!$A:$C,3,0) -> 304 | K26: 是 | L26: =VLOOKUP(D26,[1]sheet1!$A$1:$C$293,2,0) -> 3110 | M26: 是 | N26: 否 | O26: / | P26: 是 | Q26: 毕业 | R26: ¥0.00
A27: 22 | B27: 电子商务 | C27: 1 | D27: 20220606046 | E27: 廖俊洋 | F27: 0 | G27: 无 | H27: 是 | I27: 38.5 | J27: =VLOOKUP(D27,[1]sheet1!$A:$C,3,0) -> 282 | K27: 是 | L27: =VLOOKUP(D27,[1]sheet1!$A$1:$C$293,2,0) -> 2070 | M27: 是 | N27: 否 | O27: / | P27: 是 | Q27: 毕业 | R27: ¥0.00
A28: 23 | B28: 电子商务 | C28: 1 | D28: 20220606045 | E28: 蔡良甜 | F28: 0 | G28: 无 | H28: 是 | I28: 43.5 | J28: =VLOOKUP(D28,[1]sheet1!$A:$C,3,0) -> 273 | K28: 是 | L28: =VLOOKUP(D28,[1]sheet1!$A$1:$C$293,2,0) -> 2090 | M28: 是 | N28: 否 | O28: / | P28: 是 | Q28: 毕业 | R28: ¥0.00
A29: 24 | B29: 电子商务 | C29: 1 | D29: 20220210041 | E29: 李雪龙 | F29: 1 | G29: 职场英语 | H29: 是 | I29: 41.5 | J29: =VLOOKUP(D29,[1]sheet1!$A:$C,3,0) -> 257 | K29: 是 | L29: =VLOOKUP(D29,[1]sheet1!$A$1:$C$293,2,0) -> 1800 | M29: 是 | N29: 是 | O29: 是 | P29: 否 | Q29: 结业 | R29: ¥0.00 | S29: 1
A30: 25 | B30: 电子商务 | C30: 1 | D30: 20220606112 | E30: 李嘉彬 | F30: 0 | G30: 无 | H30: 是 | I30: 37.5 | J30: =VLOOKUP(D30,[1]sheet1!$A:$C,3,0) -> 386 | K30: 是 | L30: =VLOOKUP(D30,[1]sheet1!$A$1:$C$293,2,0) -> 2320 | M30: 是 | N30: 否 | O30: / | P30: 是 | Q30: 毕业 | R30: ¥0.00
A31: 26 | B31: 电子商务 | C31: 1 | D31: 20220606037 | E31: 李醒龙 | F31: 0 | G31: 无 | H31: 是 | I31: 43.5 | J31: =VLOOKUP(D31,[1]sheet1!$A:$C,3,0) -> 333 | K31: 是 | L31: =VLOOKUP(D31,[1]sheet1!$A$1:$C$293,2,0) -> 2270 | M31: 是 | N31: 否 | O31: / | P31: 是 | Q31: 毕业 | R31: ¥0.00
A32: 27 | B32: 电子商务 | C32: 1 | D32: 20220606116 | E32: 陈思娜 | F32: 0 | G32: 无 | H32: 是 | I32: 43.5 | J32: =VLOOKUP(D32,[1]sheet1!$A:$C,3,0) -> 233 | K32: 是 | L32: =VLOOKUP(D32,[1]sheet1!$A$1:$C$293,2,0) -> 2670 | M32: 是 | N32: 否 | O32: / | P32: 是 | Q32: 毕业 | R32: ¥0.00
A33: 28 | B33: 电子商务 | C33: 1 | D33: 20220606126 | E33: 胡燕凤 | F33: 0 | G33: 无 | H33: 是 | I33: 46.5 | J33: =VLOOKUP(D33,[1]sheet1!$A:$C,3,0) -> 280 | K33: 是 | L33: =VLOOKUP(D33,[1]sheet1!$A$1:$C$293,2,0) -> 2300 | M33: 是 | N33: 否 | O33: / | P33: 是 | Q33: 毕业 | R33: ¥0.00
A34: 29 | B34: 电子商务 | C34: 1 | D34: 20220606122 | E34: 麦春蓉 | F34: 0 | G34: 无 | H34: 是 | I34: 42.5 | J34: =VLOOKUP(D34,[1]sheet1!$A:$C,3,0) -> 273 | K34: 是 | L34: =VLOOKUP(D34,[1]sheet1!$A$1:$C$293,2,0) -> 2600 | M34: 是 | N34: 否 | O34: / | P34: 是 | Q34: 毕业 | R34: ¥0.00
A35: 30 | B35: 电子商务 | C35: 1 | D35: 20220606025 | E35: 韦艳麟 | F35: 0 | G35: 无 | H35: 是 | I35: 28.5 | J35: =VLOOKUP(D35,[1]sheet1!$A:$C,3,0) -> 235 | K35: 是 | L35: =VLOOKUP(D35,[1]sheet1!$A$1:$C$293,2,0) -> 2270 | M35: 是 | N35: 是 | O35: 是 | P35: 是 | Q35: 毕业 | R35: ¥0.00
A36: 31 | B36: 电子商务 | C36: 1 | D36: 20220606014 | E36: 刘元俊 | F36: 0 | G36: 无 | H36: 是 | I36: 41.5 | J36: =VLOOKUP(D36,[1]sheet1!$A:$C,3,0) -> 248 | K36: 是 | L36: =VLOOKUP(D36,[1]sheet1!$A$1:$C$293,2,0) -> 1830 | M36: 是 | N36: 否 | O36: / | P36: 是 | Q36: 毕业 | R36: ¥0.00
A37: 32 | B37: 电子商务 | C37: 1 | D37: 20220606078 | E37: 贲和靖 | F37: 0 | G37: 无 | H37: 是 | I37: 38.5 | J37: =VLOOKUP(D37,[1]sheet1!$A:$C,3,0) -> 259 | K37: 是 | L37: =VLOOKUP(D37,[1]sheet1!$A$1:$C$293,2,0) -> 2140 | M37: 是 | N37: 否 | O37: / | P37: 是 | Q37: 毕业 | R37: ¥0.00
A38: 33 | B38: 电子商务 | C38: 1 | D38: 20220606151 | E38: 徐己振 | F38: 0 | G38: 无 | H38: 是 | I38: 46.5 | J38: =VLOOKUP(D38,[1]sheet1!$A:$C,3,0) -> 443 | K38: 是 | L38: =VLOOKUP(D38,[1]sheet1!$A$1:$C$293,2,0) -> 2190 | M38: 是 | N38: 否 | O38: / | P38: 是 | Q38: 毕业 | R38: ¥0.00
A39: 34 | B39: 电子商务 | C39: 1 | D39: 20220606147 | E39: 吴施敏 | F39: 0 | G39: 无 | H39: 是 | I39: 42.5 | J39: =VLOOKUP(D39,[1]sheet1!$A:$C,3,0) -> 409 | K39: 是 | L39: =VLOOKUP(D39,[1]sheet1!$A$1:$C$293,2,0) -> 2640 | M39: 是 | N39: 否 | O39: / | P39: 是 | Q39: 毕业 | R39: ¥0.00
A40: 35 | B40: 电子商务 | C40: 1 | D40: 20220606105 | E40: 吴秋楠 | F40: 0 | G40: 无 | H40: 是 | I40: 44.5 | J40: =VLOOKUP(D40,[1]sheet1!$A:$C,3,0) -> 249 | K40: 是 | L40: =VLOOKUP(D40,[1]sheet1!$A$1:$C$293,2,0) -> 1940 | M40: 是 | N40: 否 | O40: / | P40: 是 | Q40: 毕业 | R40: ¥0.00
A41: 36 | B41: 电子商务 | C41: 1 | D41: 20220606132 | E41: 莫月华 | F41: 0 | G41: 无 | H41: 是 | I41: 41.5 | J41: =VLOOKUP(D41,[1]sheet1!$A:$C,3,0) -> 461 | K41: 是 | L41: =VLOOKUP(D41,[1]sheet1!$A$1:$C$293,2,0) -> 4360 | M41: 是 | N41: 否 | O41: / | P41: 是 | Q41: 毕业 | R41: ¥0.00
A42: 37 | B42: 电子商务 | C42: 1 | D42: 20220606139 | E42: 肖海霞 | F42: 0 | G42: 无 | H42: 是 | I42: 43.5 | J42: =VLOOKUP(D42,[1]sheet1!$A:$C,3,0) -> 427 | K42: 是 | L42: =VLOOKUP(D42,[1]sheet1!$A$1:$C$293,2,0) -> 2440 | M42: 是 | N42: 否 | O42: / | P42: 是 | Q42: 毕业 | R42: ¥0.00
A43: 38 | B43: 电子商务 | C43: 1 | D43: 20220606013 | E43: 潘茜宁 | F43: 0 | G43: 无 | H43: 是 | I43: 44.5 | J43: =VLOOKUP(D43,[1]sheet1!$A:$C,3,0) -> 350 | K43: 是 | L43: =VLOOKUP(D43,[1]sheet1!$A$1:$C$293,2,0) -> 3160 | M43: 是 | N43: 否 | O43: / | P43: 是 | Q43: 毕业 | R43: ¥0.00
A44: 39 | B44: 电子商务 | C44: 1 | D44: 20220508051 | E44: 黄瀚洲 | F44: 0 | G44: 无 | H44: 是 | I44: 40.5 | J44: =VLOOKUP(D44,[1]sheet1!$A:$C,3,0) -> 274 | K44: 是 | L44: =VLOOKUP(D44,[1]sheet1!$A$1:$C$293,2,0) -> 2080 | M44: 是 | N44: 是 | O44: 是 | P44: 是 | Q44: 毕业 | R44: ¥0.00
A45: 40 | B45: 电子商务 | C45: 1 | D45: 20220606035 | E45: 郑雅惠 | F45: 0 | G45: 无 | H45: 是 | I45: 44.5 | J45: =VLOOKUP(D45,[1]sheet1!$A:$C,3,0) -> 288 | K45: 是 | L45: =VLOOKUP(D45,[1]sheet1!$A$1:$C$293,2,0) -> 2140 | M45: 是 | N45: 否 | O45: / | P45: 是 | Q45: 毕业 | R45: ¥0.00
A46: 41 | B46: 电子商务 | C46: 1 | D46: 20220606017 | E46: 许怡凤 | F46: 0 | G46: 无 | H46: 是 | I46: 42.5 | J46: =VLOOKUP(D46,[1]sheet1!$A:$C,3,0) -> 412 | K46: 是 | L46: =VLOOKUP(D46,[1]sheet1!$A$1:$C$293,2,0) -> 2470 | M46: 是 | N46: 否 | O46: / | P46: 是 | Q46: 毕业 | R46: ¥0.00
A47: 42 | B47: 电子商务 | C47: 1 | D47: 20220606130 | E47: 陈钰铧 | F47: 0 | G47: 无 | H47: 是 | I47: 47.5 | J47: =VLOOKUP(D47,[1]sheet1!$A:$C,3,0) -> 246 | K47: 是 | L47: =VLOOKUP(D47,[1]sheet1!$A$1:$C$293,2,0) -> 2680 | M47: 是 | N47: 否 | O47: / | P47: 是 | Q47: 毕业 | R47: ¥0.00
A48: 43 | B48: 电子商务 | C48: 1 | D48: 20220606137 | E48: 李盈燕 | F48: 0 | G48: 无 | H48: 是 | I48: 44.5 | J48: =VLOOKUP(D48,[1]sheet1!$A:$C,3,0) -> 266 | K48: 是 | L48: =VLOOKUP(D48,[1]sheet1!$A$1:$C$293,2,0) -> 2300 | M48: 是 | N48: 否 | O48: / | P48: 是 | Q48: 毕业 | R48: ¥0.00
A49: 44 | B49: 电子商务 | C49: 1 | D49: 20220606031 | E49: 罗耀祖 | F49: 0 | G49: 无 | H49: 是 | I49: 45.5 | J49: =VLOOKUP(D49,[1]sheet1!$A:$C,3,0) -> 244 | K49: 是 | L49: =VLOOKUP(D49,[1]sheet1!$A$1:$C$293,2,0) -> 2090 | M49: 是 | N49: 否 | O49: / | P49: 是 | Q49: 毕业 | R49: ¥0.00
A50: 45 | B50: 电子商务 | C50: 1 | D50: 20220606072 | E50: 韦海文 | F50: 0 | G50: 无 | H50: 是 | I50: 42.5 | J50: =VLOOKUP(D50,[1]sheet1!$A:$C,3,0) -> 367 | K50: 是 | L50: =VLOOKUP(D50,[1]sheet1!$A$1:$C$293,2,0) -> 3200 | M50: 是 | N50: 否 | O50: / | P50: 是 | Q50: 毕业 | R50: ¥0.00
A51: 46 | B51: 电子商务 | C51: 1 | D51: 20220606118 | E51: 蔡小红 | F51: 0 | G51: 无 | H51: 是 | I51: 43.5 | J51: =VLOOKUP(D51,[1]sheet1!$A:$C,3,0) -> 316 | K51: 是 | L51: =VLOOKUP(D51,[1]sheet1!$A$1:$C$293,2,0) -> 2460 | M51: 是 | N51: 否 | O51: / | P51: 是 | Q51: 毕业 | R51: ¥0.00
A52: 47 | B52: 电子商务 | C52: 1 | D52: 20220606052 | E52: 贾琦 | F52: 0 | G52: 无 | H52: 是 | I52: 48.5 | J52: =VLOOKUP(D52,[1]sheet1!$A:$C,3,0) -> 462 | K52: 是 | L52: =VLOOKUP(D52,[1]sheet1!$A$1:$C$293,2,0) -> 3160 | M52: 是 | N52: 否 | O52: / | P52: 是 | Q52: 毕业 | R52: ¥0.00
A53: 48 | B53: 电子商务 | C53: 1 | D53: 20220606039 | E53: 王玉红 | F53: 0 | G53: 无 | H53: 是 | I53: 43.5 | J53: =VLOOKUP(D53,[1]sheet1!$A:$C,3,0) -> 307 | K53: 是 | L53: =VLOOKUP(D53,[1]sheet1!$A$1:$C$293,2,0) -> 2560 | M53: 是 | N53: 否 | O53: / | P53: 是 | Q53: 毕业 | R53: ¥0.00
A54: 49 | B54: 电子商务 | C54: 1 | D54: 20220606117 | E54: 吴湘怡 | F54: 0 | G54: 无 | H54: 是 | I54: 41.5 | J54: =VLOOKUP(D54,[1]sheet1!$A:$C,3,0) -> 374 | K54: 是 | L54: =VLOOKUP(D54,[1]sheet1!$A$1:$C$293,2,0) -> 2540 | M54: 是 | N54: 否 | O54: / | P54: 是 | Q54: 毕业 | R54: ¥0.00
A55: 50 | B55: 电子商务 | C55: 1 | D55: 20220606114 | E55: 潘柳柳 | F55: 0 | G55: 无 | H55: 是 | I55: 48.5 | J55: =VLOOKUP(D55,[1]sheet1!$A:$C,3,0) -> 342 | K55: 是 | L55: =VLOOKUP(D55,[1]sheet1!$A$1:$C$293,2,0) -> 2540 | M55: 是 | N55: 否 | O55: / | P55: 是 | Q55: 毕业 | R55: ¥0.00
A56: 51 | B56: 电子商务 | C56: 1 | D56: 20220606115 | E56: 曾瑞璋 | F56: 0 | G56: 无 | H56: 是 | I56: 43.5 | J56: =VLOOKUP(D56,[1]sheet1!$A:$C,3,0) -> 257 | K56: 是 | L56: =VLOOKUP(D56,[1]sheet1!$A$1:$C$293,2,0) -> 1890 | M56: 是 | N56: 否 | O56: / | P56: 是 | Q56: 毕业 | R56: ¥0.00
A57: 52 | B57: 电子商务 | C57: 1 | D57: 20220606113 | E57: 秦素珍 | F57: 0 | G57: 无 | H57: 是 | I57: 44.5 | J57: =VLOOKUP(D57,[1]sheet1!$A:$C,3,0) -> 316 | K57: 是 | L57: =VLOOKUP(D57,[1]sheet1!$A$1:$C$293,2,0) -> 3060 | M57: 是 | N57: 否 | O57: / | P57: 是 | Q57: 毕业 | R57: ¥0.00
A58: 53 | B58: 电子商务 | C58: 1 | D58: 20220606016 | E58: 吴晓磊 | F58: 0 | G58: 无 | H58: 是 | I58: 44.5 | J58: =VLOOKUP(D58,[1]sheet1!$A:$C,3,0) -> 253 | K58: 是 | L58: =VLOOKUP(D58,[1]sheet1!$A$1:$C$293,2,0) -> 2190 | M58: 是 | N58: 否 | O58: / | P58: 是 | Q58: 毕业 | R58: ¥0.00
A59: 54 | B59: 电子商务 | C59: 1 | D59: 20220606145 | E59: 叶姿麟 | F59: 0 | G59: 无 | H59: 是 | I59: 43.5 | J59: =VLOOKUP(D59,[1]sheet1!$A:$C,3,0) -> 332 | K59: 是 | L59: =VLOOKUP(D59,[1]sheet1!$A$1:$C$293,2,0) -> 2940 | M59: 是 | N59: 否 | O59: / | P59: 是 | Q59: 毕业 | R59: ¥0.00
A60: 55 | B60: 电子商务 | C60: 2 | D60: 20210606035 | E60: 梁欣悦 | F60: 0 | G60: 无 | H60: 是 | I60: 41.5 | J60: =VLOOKUP(D60,[1]sheet1!$A:$C,3,0) -> 240 | K60: 是 | L60: =VLOOKUP(D60,[1]sheet1!$A$1:$C$293,2,0) -> 1920 | M60: 是 | N60: 否 | O60: / | P60: 是 | Q60: 毕业 | R60: ¥0.00
A61: 56 | B61: 电子商务 | C61: 2 | D61: 20220606153 | E61: 章涛 | F61: 1 | G61: 营销基础 | H61: 是 | I61: 44.5 | J61: =VLOOKUP(D61,[1]sheet1!$A:$C,3,0) -> 253 | K61: 是 | L61: =VLOOKUP(D61,[1]sheet1!$A$1:$C$293,2,0) -> 2010 | M61: 是 | N61: 否 | O61: / | P61: 否 | Q61: 结业 | R61: ¥0.00 | S61: 1
A62: 57 | B62: 电子商务 | C62: 2 | D62: 20220606157 | E62: 辜胜航 | F62: 3 | G62: 网店客户关系管理、思想道德与法治、职业发展与就业指导（一） | H62: 是 | I62: 40 | J62: =VLOOKUP(D62,[1]sheet1!$A:$C,3,0) -> 297 | K62: 是 | L62: =VLOOKUP(D62,[1]sheet1!$A$1:$C$293,2,0) -> 1950 | M62: 是 | N62: 否 | O62: / | P62: 否 | Q62: 结业 | R62: ¥0.00 | S62: 1
A63: 58 | B63: 电子商务 | C63: 2 | D63: 20220606142 | E63: 罗亚花 | F63: 0 | G63: 无 | H63: 是 | I63: 43.5 | J63: =VLOOKUP(D63,[1]sheet1!$A:$C,3,0) -> 253 | K63: 是 | L63: =VLOOKUP(D63,[1]sheet1!$A$1:$C$293,2,0) -> 2360 | M63: 是 | N63: 否 | O63: / | P63: 是 | Q63: 毕业 | R63: ¥0.00
A64: 59 | B64: 电子商务 | C64: 2 | D64: 20220606106 | E64: 史倩倩 | F64: 0 | G64: 无 | H64: 是 | I64: 37.5 | J64: =VLOOKUP(D64,[1]sheet1!$A:$C,3,0) -> 248 | K64: 是 | L64: =VLOOKUP(D64,[1]sheet1!$A$1:$C$293,2,0) -> 2160 | M64: 是 | N64: 否 | O64: / | P64: 是 | Q64: 毕业 | R64: ¥0.00
A65: 60 | B65: 电子商务 | C65: 2 | D65: 20220606160 | E65: 努尔伊萨拉姆·努尔艾合麦提 | F65: 0 | G65: 无 | H65: 是 | I65: 43.5 | J65: =VLOOKUP(D65,[1]sheet1!$A:$C,3,0) -> 304 | K65: 是 | L65: =VLOOKUP(D65,[1]sheet1!$A$1:$C$293,2,0) -> 2890 | M65: 是 | N65: 否 | O65: / | P65: 是 | Q65: 毕业 | R65: ¥0.00
A66: 61 | B66: 电子商务 | C66: 2 | D66: 20220606158 | E66: 木尼然·玉买尔 | F66: 0 | G66: 无 | H66: 是 | I66: 43.5 | J66: =VLOOKUP(D66,[1]sheet1!$A:$C,3,0) -> 305 | K66: 是 | L66: =VLOOKUP(D66,[1]sheet1!$A$1:$C$293,2,0) -> 2750 | M66: 是 | N66: 否 | O66: / | P66: 是 | Q66: 毕业 | R66: ¥0.00
A67: 62 | B67: 电子商务 | C67: 2 | D67: 20220606155 | E67: 孟原颉 | F67: 0 | G67: 无 | H67: 是 | I67: 37.5 | J67: =VLOOKUP(D67,[1]sheet1!$A:$C,3,0) -> 284 | K67: 是 | L67: =VLOOKUP(D67,[1]sheet1!$A$1:$C$293,2,0) -> 2790 | M67: 是 | N67: 否 | O67: / | P67: 是 | Q67: 毕业 | R67: ¥0.00
A68: 63 | B68: 电子商务 | C68: 2 | D68: 20220606143 | E68: 李思娣 | F68: 0 | G68: 无 | H68: 是 | I68: 40.5 | J68: =VLOOKUP(D68,[1]sheet1!$A:$C,3,0) -> 271 | K68: 是 | L68: =VLOOKUP(D68,[1]sheet1!$A$1:$C$293,2,0) -> 2320 | M68: 是 | N68: 否 | O68: / | P68: 是 | Q68: 毕业 | R68: ¥0.00
A69: 64 | B69: 电子商务 | C69: 2 | D69: 20220606108 | E69: 王小妹 | F69: 0 | G69: 无 | H69: 是 | I69: 41.5 | J69: =VLOOKUP(D69,[1]sheet1!$A:$C,3,0) -> 268 | K69: 是 | L69: =VLOOKUP(D69,[1]sheet1!$A$1:$C$293,2,0) -> 2250 | M69: 是 | N69: 否 | O69: / | P69: 是 | Q69: 毕业 | R69: ¥0.00
A70: 65 | B70: 电子商务 | C70: 2 | D70: 20220606107 | E70: 雷旺 | F70: 0 | G70: 无 | H70: 是 | I70: 39.5 | J70: =VLOOKUP(D70,[1]sheet1!$A:$C,3,0) -> 250 | K70: 是 | L70: =VLOOKUP(D70,[1]sheet1!$A$1:$C$293,2,0) -> 2290 | M70: 是 | N70: 否 | O70: / | P70: 是 | Q70: 毕业 | R70: ¥0.00
A71: 66 | B71: 电子商务 | C71: 2 | D71: 20220606034 | E71: 余宏丹 | F71: 0 | G71: 无 | H71: 是 | I71: 45.5 | J71: =VLOOKUP(D71,[1]sheet1!$A:$C,3,0) -> 308 | K71: 是 | L71: =VLOOKUP(D71,[1]sheet1!$A$1:$C$293,2,0) -> 2160 | M71: 是 | N71: 否 | O71: / | P71: 是 | Q71: 毕业 | R71: ¥0.00
A72: 67 | B72: 电子商务 | C72: 2 | D72: 20220610095 | E72: 易海青 | F72: 0 | G72: 无 | H72: 是 | I72: 43.5 | J72: =VLOOKUP(D72,[1]sheet1!$A:$C,3,0) -> 400 | K72: 是 | L72: =VLOOKUP(D72,[1]sheet1!$A$1:$C$293,2,0) -> 2140 | M72: 是 | N72: 否 | O72: / | P72: 是 | Q72: 毕业 | R72: ¥0.00
A73: 68 | B73: 电子商务 | C73: 2 | D73: 20210606209 | E73: 梁桂玲 | F73: 0 | G73: 无 | H73: 是 | I73: 42.5 | J73: =VLOOKUP(D73,[1]sheet1!$A:$C,3,0) -> 318 | K73: 是 | L73: =VLOOKUP(D73,[1]sheet1!$A$1:$C$293,2,0) -> 2960 | M73: 是 | N73: 否 | O73: / | P73: 是 | Q73: 毕业 | R73: ¥0.00
A74: 69 | B74: 电子商务 | C74: 2 | D74: 20220606019 | E74: 李林 | F74: 0 | G74: 无 | H74: 是 | I74: 43.5 | J74: =VLOOKUP(D74,[1]sheet1!$A:$C,3,0) -> 284 | K74: 是 | L74: =VLOOKUP(D74,[1]sheet1!$A$1:$C$293,2,0) -> 2210 | M74: 是 | N74: 否 | O74: / | P74: 是 | Q74: 毕业 | R74: ¥0.00
A75: 70 | B75: 电子商务 | C75: 2 | D75: 20220606111 | E75: 钟国安 | F75: 0 | G75: 无 | H75: 是 | I75: 43.5 | J75: =VLOOKUP(D75,[1]sheet1!$A:$C,3,0) -> 381 | K75: 是 | L75: =VLOOKUP(D75,[1]sheet1!$A$1:$C$293,2,0) -> 2740 | M75: 是 | N75: 否 | O75: / | P75: 是 | Q75: 毕业 | R75: ¥0.00
A76: 71 | B76: 电子商务 | C76: 2 | D76: 20220606051 | E76: 冼丽君 | F76: 0 | G76: 无 | H76: 是 | I76: 41.5 | J76: =VLOOKUP(D76,[1]sheet1!$A:$C,3,0) -> 249 | K76: 是 | L76: =VLOOKUP(D76,[1]sheet1!$A$1:$C$293,2,0) -> 2340 | M76: 是 | N76: 否 | O76: / | P76: 是 | Q76: 毕业 | R76: ¥0.00
A77: 72 | B77: 电子商务 | C77: 2 | D77: 20220606023 | E77: 曹程阳 | F77: 0 | G77: 无 | H77: 是 | I77: 47.5 | J77: =VLOOKUP(D77,[1]sheet1!$A:$C,3,0) -> 364 | K77: 是 | L77: =VLOOKUP(D77,[1]sheet1!$A$1:$C$293,2,0) -> 2920 | M77: 是 | N77: 否 | O77: / | P77: 是 | Q77: 毕业 | R77: ¥0.00
A78: 73 | B78: 电子商务 | C78: 2 | D78: 20220606043 | E78: 李锦雄 | F78: 0 | G78: 无 | H78: 是 | I78: 37.5 | J78: =VLOOKUP(D78,[1]sheet1!$A:$C,3,0) -> 335 | K78: 是 | L78: =VLOOKUP(D78,[1]sheet1!$A$1:$C$293,2,0) -> 3440 | M78: 是 | N78: 否 | O78: / | P78: 是 | Q78: 毕业 | R78: ¥0.00
A79: 74 | B79: 电子商务 | C79: 2 | D79: 20220708028 | E79: 杨敏 | F79: 0 | G79: 无 | H79: 是 | I79: 40.5 | J79: =VLOOKUP(D79,[1]sheet1!$A:$C,3,0) -> 267 | K79: 是 | L79: =VLOOKUP(D79,[1]sheet1!$A$1:$C$293,2,0) -> 2330 | M79: 是 | N79: 否 | O79: / | P79: 是 | Q79: 毕业 | R79: ¥0.00
A80: 75 | B80: 电子商务 | C80: 2 | D80: 20220606135 | E80: 谢梅婷 | F80: 0 | G80: 无 | H80: 是 | I80: 41.5 | J80: =VLOOKUP(D80,[1]sheet1!$A:$C,3,0) -> 302 | K80: 是 | L80: =VLOOKUP(D80,[1]sheet1!$A$1:$C$293,2,0) -> 2650 | M80: 是 | N80: 否 | O80: / | P80: 是 | Q80: 毕业 | R80: ¥0.00
A81: 76 | B81: 电子商务 | C81: 2 | D81: 20220606040 | E81: 凌玉芬 | F81: 0 | G81: 无 | H81: 是 | I81: 41.5 | J81: =VLOOKUP(D81,[1]sheet1!$A:$C,3,0) -> 266 | K81: 是 | L81: =VLOOKUP(D81,[1]sheet1!$A$1:$C$293,2,0) -> 2440 | M81: 是 | N81: 否 | O81: / | P81: 是 | Q81: 毕业 | R81: ¥0.00
A82: 77 | B82: 电子商务 | C82: 2 | D82: 20220606124 | E82: 莫慧红 | F82: 0 | G82: 无 | H82: 是 | I82: 48.5 | J82: =VLOOKUP(D82,[1]sheet1!$A:$C,3,0) -> 327 | K82: 是 | L82: =VLOOKUP(D82,[1]sheet1!$A$1:$C$293,2,0) -> 2240 | M82: 是 | N82: 否 | O82: / | P82: 是 | Q82: 毕业 | R82: ¥0.00
A83: 78 | B83: 电子商务 | C83: 2 | D83: 20220606011 | E83: 梁丽琳 | F83: 0 | G83: 无 | H83: 是 | I83: 44.5 | J83: =VLOOKUP(D83,[1]sheet1!$A:$C,3,0) -> 400 | K83: 是 | L83: =VLOOKUP(D83,[1]sheet1!$A$1:$C$293,2,0) -> 3170 | M83: 是 | N83: 否 | O83: / | P83: 是 | Q83: 毕业 | R83: ¥0.00
A84: 79 | B84: 电子商务 | C84: 2 | D84: 20220606024 | E84: 赵善富 | F84: 0 | G84: 无 | H84: 是 | I84: 37.5 | J84: =VLOOKUP(D84,[1]sheet1!$A:$C,3,0) -> 364 | K84: 是 | L84: =VLOOKUP(D84,[1]sheet1!$A$1:$C$293,2,0) -> 3160 | M84: 是 | N84: 否 | O84: / | P84: 是 | Q84: 毕业 | R84: ¥0.00
A85: 80 | B85: 电子商务 | C85: 2 | D85: 20220606008 | E85: 李连星 | F85: 1 | G85: 预就业实习（整周实践） | H85: 是 | I85: 39.5 | J85: =VLOOKUP(D85,[1]sheet1!$A:$C,3,0) -> 347 | K85: 是 | L85: =VLOOKUP(D85,[1]sheet1!$A$1:$C$293,2,0) -> 2910 | M85: 是 | N85: 否 | O85: / | P85: 否 | Q85: 结业 | R85: ¥0.00 | S85: 1
A86: 81 | B86: 电子商务 | C86: 2 | D86: 20220606001 | E86: 李艳云 | F86: 0 | G86: 无 | H86: 是 | I86: 41.5 | J86: =VLOOKUP(D86,[1]sheet1!$A:$C,3,0) -> 359 | K86: 是 | L86: =VLOOKUP(D86,[1]sheet1!$A$1:$C$293,2,0) -> 3560 | M86: 是 | N86: 否 | O86: / | P86: 是 | Q86: 毕业 | R86: ¥0.00
A87: 82 | B87: 电子商务 | C87: 2 | D87: 20220107087 | E87: 张珍梅 | F87: 0 | G87: 无 | H87: 是 | I87: 42.5 | J87: =VLOOKUP(D87,[1]sheet1!$A:$C,3,0) -> 269 | K87: 是 | L87: =VLOOKUP(D87,[1]sheet1!$A$1:$C$293,2,0) -> 2450 | M87: 是 | N87: 否 | O87: / | P87: 是 | Q87: 毕业 | R87: ¥0.00
A88: 83 | B88: 电子商务 | C88: 2 | D88: 20220606150 | E88: 白玉娜 | F88: 0 | G88: 无 | H88: 是 | I88: 40.5 | J88: =VLOOKUP(D88,[1]sheet1!$A:$C,3,0) -> 264 | K88: 是 | L88: =VLOOKUP(D88,[1]sheet1!$A$1:$C$293,2,0) -> 2290 | M88: 是 | N88: 否 | O88: / | P88: 是 | Q88: 毕业 | R88: ¥0.00
A89: 84 | B89: 电子商务 | C89: 2 | D89: 20220606119 | E89: 陈泰峰 | F89: 0 | G89: 无 | H89: 是 | I89: 37.5 | J89: =VLOOKUP(D89,[1]sheet1!$A:$C,3,0) -> 273 | K89: 是 | L89: =VLOOKUP(D89,[1]sheet1!$A$1:$C$293,2,0) -> 2660 | M89: 是 | N89: 否 | O89: / | P89: 是 | Q89: 毕业 | R89: ¥0.00
A90: 85 | B90: 电子商务 | C90: 2 | D90: 20220606005 | E90: 陆伟豪 | F90: 1 | G90: 预就业实习（整周实践） | H90: 是 | I90: 38 | J90: =VLOOKUP(D90,[1]sheet1!$A:$C,3,0) -> 289 | K90: 是 | L90: =VLOOKUP(D90,[1]sheet1!$A$1:$C$293,2,0) -> 1860 | M90: 是 | N90: 否 | O90: / | P90: 否 | Q90: 结业 | R90: ¥0.00 | S90: 1
A91: 86 | B91: 电子商务 | C91: 2 | D91: 20220604036 | E91: 宋思颖 | F91: 0 | G91: 无 | H91: 是 | I91: 41.5 | J91: =VLOOKUP(D91,[1]sheet1!$A:$C,3,0) -> 244 | K91: 是 | L91: =VLOOKUP(D91,[1]sheet1!$A$1:$C$293,2,0) -> 1870 | M91: 是 | N91: 否 | O91: / | P91: 是 | Q91: 毕业 | R91: ¥0.00
A92: 87 | B92: 电子商务 | C92: 2 | D92: 20220606036 | E92: 蒙宏俊 | F92: 0 | G92: 无 | H92: 是 | I92: 45.5 | J92: =VLOOKUP(D92,[1]sheet1!$A:$C,3,0) -> 286 | K92: 是 | L92: =VLOOKUP(D92,[1]sheet1!$A$1:$C$293,2,0) -> 2240 | M92: 是 | N92: 否 | O92: / | P92: 是 | Q92: 毕业 | R92: ¥0.00
A93: 88 | B93: 电子商务 | C93: 2 | D93: 20220606032 | E93: 施建锋 | F93: 0 | G93: 无 | H93: 是 | I93: 37.5 | J93: =VLOOKUP(D93,[1]sheet1!$A:$C,3,0) -> 381 | K93: 是 | L93: =VLOOKUP(D93,[1]sheet1!$A$1:$C$293,2,0) -> 3170 | M93: 是 | N93: 否 | O93: / | P93: 是 | Q93: 毕业 | R93: ¥0.00
A94: 89 | B94: 电子商务 | C94: 2 | D94: 20220606006 | E94: 李凯莹 | F94: 0 | G94: 无 | H94: 是 | I94: 42.5 | J94: =VLOOKUP(D94,[1]sheet1!$A:$C,3,0) -> 364 | K94: 是 | L94: =VLOOKUP(D94,[1]sheet1!$A$1:$C$293,2,0) -> 3080 | M94: 是 | N94: 否 | O94: / | P94: 是 | Q94: 毕业 | R94: ¥0.00
A95: 90 | B95: 电子商务 | C95: 2 | D95: 20220606125 | E95: 覃秀芳 | F95: 0 | G95: 无 | H95: 是 | I95: 44.5 | J95: =VLOOKUP(D95,[1]sheet1!$A:$C,3,0) -> 302 | K95: 是 | L95: =VLOOKUP(D95,[1]sheet1!$A$1:$C$293,2,0) -> 2400 | M95: 是 | N95: 否 | O95: / | P95: 是 | Q95: 毕业 | R95: ¥0.00
A96: 91 | B96: 电子商务 | C96: 2 | D96: 20220606041 | E96: 田业康 | F96: 0 | G96: 无 | H96: 是 | I96: 39 | J96: =VLOOKUP(D96,[1]sheet1!$A:$C,3,0) -> 229 | K96: 是 | L96: =VLOOKUP(D96,[1]sheet1!$A$1:$C$293,2,0) -> 1970 | M96: 是 | N96: 否 | O96: / | P96: 是 | Q96: 毕业 | R96: ¥0.00
A97: 92 | B97: 电子商务 | C97: 2 | D97: 20220606030 | E97: 车柳玲 | F97: 0 | G97: 无 | H97: 是 | I97: 40.5 | J97: =VLOOKUP(D97,[1]sheet1!$A:$C,3,0) -> 346 | K97: 是 | L97: =VLOOKUP(D97,[1]sheet1!$A$1:$C$293,2,0) -> 3460 | M97: 是 | N97: 否 | O97: / | P97: 是 | Q97: 毕业 | R97: ¥0.00
A98: 93 | B98: 电子商务 | C98: 2 | D98: 20220606120 | E98: 张欣宇 | F98: 0 | G98: 无 | H98: 是 | I98: 41.5 | J98: =VLOOKUP(D98,[1]sheet1!$A:$C,3,0) -> 280 | K98: 是 | L98: =VLOOKUP(D98,[1]sheet1!$A$1:$C$293,2,0) -> 2540 | M98: 是 | N98: 否 | O98: / | P98: 是 | Q98: 毕业 | R98: ¥0.00
A99: 94 | B99: 电子商务 | C99: 2 | D99: 20220606010 | E99: 陈镇球 | F99: 1 | G99: 营销基础 | H99: 是 | I99: 45 | J99: =VLOOKUP(D99,[1]sheet1!$A:$C,3,0) -> 247 | K99: 是 | L99: =VLOOKUP(D99,[1]sheet1!$A$1:$C$293,2,0) -> 2070 | M99: 是 | N99: 否 | O99: / | P99: 否 | Q99: 结业 | R99: ¥0.00 | S99: 1
A100: 95 | B100: 电子商务 | C100: 2 | D100: 20220606048 | E100: 李美坚 | F100: 0 | G100: 无 | H100: 是 | I100: 43.5 | J100: =VLOOKUP(D100,[1]sheet1!$A:$C,3,0) -> 299 | K100: 是 | L100: =VLOOKUP(D100,[1]sheet1!$A$1:$C$293,2,0) -> 2090 | M100: 是 | N100: 否 | O100: / | P100: 是 | Q100: 毕业 | R100: ¥0.00
A101: 96 | B101: 电子商务 | C101: 2 | D101: 20220606123 | E101: 杨舒媛 | F101: 0 | G101: 无 | H101: 是 | I101: 47.5 | J101: =VLOOKUP(D101,[1]sheet1!$A:$C,3,0) -> 321 | K101: 是 | L101: =VLOOKUP(D101,[1]sheet1!$A$1:$C$293,2,0) -> 2750 | M101: 是 | N101: 否 | O101: / | P101: 是 | Q101: 毕业 | R101: ¥0.00
A102: 97 | B102: 电子商务 | C102: 2 | D102: 20220606042 | E102: 陈钊 | F102: 0 | G102: 无 | H102: 是 | I102: 38.5 | J102: =VLOOKUP(D102,[1]sheet1!$A:$C,3,0) -> 348 | K102: 是 | L102: =VLOOKUP(D102,[1]sheet1!$A$1:$C$293,2,0) -> 3330 | M102: 是 | N102: 否 | O102: / | P102: 是 | Q102: 毕业 | R102: ¥0.00
A103: 98 | B103: 电子商务 | C103: 2 | D103: 20220606128 | E103: 黄晓梅 | F103: 0 | G103: 无 | H103: 是 | I103: 45.5 | J103: =VLOOKUP(D103,[1]sheet1!$A:$C,3,0) -> 374 | K103: 是 | L103: =VLOOKUP(D103,[1]sheet1!$A$1:$C$293,2,0) -> 2520 | M103: 是 | N103: 否 | O103: / | P103: 是 | Q103: 毕业 | R103: ¥0.00
A104: 99 | B104: 电子商务 | C104: 2 | D104: 20220606033 | E104: 孔维锦 | F104: 1 | G104: 营销基础 | H104: 是 | I104: 43.5 | J104: =VLOOKUP(D104,[1]sheet1!$A:$C,3,0) -> 373 | K104: 是 | L104: =VLOOKUP(D104,[1]sheet1!$A$1:$C$293,2,0) -> 1940 | M104: 是 | N104: 否 | O104: / | P104: 否 | Q104: 结业 | R104: ¥0.00 | S104: 1
A105: 100 | B105: 电子商务 | C105: 2 | D105: 20220606055 | E105: 邓燕媚 | F105: 0 | G105: 无 | H105: 是 | I105: 41.5 | J105: =VLOOKUP(D105,[1]sheet1!$A:$C,3,0) -> 266 | K105: 是 | L105: =VLOOKUP(D105,[1]sheet1!$A$1:$C$293,2,0) -> 2460 | M105: 是 | N105: 否 | O105: / | P105: 是 | Q105: 毕业 | R105: ¥0.00
A106: 101 | B106: 电子商务 | C106: 2 | D106: 20220410058 | E106: 李冰冰 | F106: 0 | G106: 无 | H106: 是 | I106: 41.5 | J106: =VLOOKUP(D106,[1]sheet1!$A:$C,3,0) -> 255 | K106: 是 | L106: =VLOOKUP(D106,[1]sheet1!$A$1:$C$293,2,0) -> 2280 | M106: 是 | N106: 否 | O106: / | P106: 是 | Q106: 毕业 | R106: ¥0.00
A107: 102 | B107: 电子商务 | C107: 2 | D107: 20220606015 | E107: 覃范焯 | F107: 0 | G107: 无 | H107: 是 | I107: 38.5 | J107: =VLOOKUP(D107,[1]sheet1!$A:$C,3,0) -> 307 | K107: 是 | L107: =VLOOKUP(D107,[1]sheet1!$A$1:$C$293,2,0) -> 3100 | M107: 是 | N107: 否 | O107: / | P107: 是 | Q107: 毕业 | R107: ¥0.00
A108: 103 | B108: 电子商务 | C108: 2 | D108: 20220606028 | E108: 祝金连 | F108: 0 | G108: 无 | H108: 是 | I108: 40.5 | J108: =VLOOKUP(D108,[1]sheet1!$A:$C,3,0) -> 334 | K108: 是 | L108: =VLOOKUP(D108,[1]sheet1!$A$1:$C$293,2,0) -> 3220 | M108: 是 | N108: 否 | O108: / | P108: 是 | Q108: 毕业 | R108: ¥0.00
A109: 104 | B109: 电子商务 | C109: 2 | D109: 20220606009 | E109: 宁春燕 | F109: 0 | G109: 无 | H109: 是 | I109: 41.5 | J109: =VLOOKUP(D109,[1]sheet1!$A:$C,3,0) -> 263 | K109: 是 | L109: =VLOOKUP(D109,[1]sheet1!$A$1:$C$293,2,0) -> 2270 | M109: 是 | N109: 否 | O109: / | P109: 是 | Q109: 毕业 | R109: ¥0.00
A110: 105 | B110: 电子商务 | C110: 2 | D110: 20220222049 | E110: 杨树 | F110: 0 | G110: 无 | H110: 是 | I110: 43.5 | J110: =VLOOKUP(D110,[1]sheet1!$A:$C,3,0) -> 446 | K110: 是 | L110: =VLOOKUP(D110,[1]sheet1!$A$1:$C$293,2,0) -> 2760 | M110: 是 | N110: 否 | O110: / | P110: 是 | Q110: 毕业 | R110: ¥0.00
A111: 106 | B111: 电子商务 | C111: 2 | D111: 20220606144 | E111: 黎钦丰 | F111: 0 | G111: 无 | H111: 是 | I111: 37.5 | J111: =VLOOKUP(D111,[1]sheet1!$A:$C,3,0) -> 392 | K111: 是 | L111: =VLOOKUP(D111,[1]sheet1!$A$1:$C$293,2,0) -> 3900 | M111: 是 | N111: 否 | O111: / | P111: 是 | Q111: 毕业 | R111: ¥0.00
A112: 107 | B112: 电子商务 | C112: 2 | D112: 20220606110 | E112: 刘梅秋 | F112: 0 | G112: 无 | H112: 是 | I112: 45.5 | J112: =VLOOKUP(D112,[1]sheet1!$A:$C,3,0) -> 328 | K112: 是 | L112: =VLOOKUP(D112,[1]sheet1!$A$1:$C$293,2,0) -> 3290 | M112: 是 | N112: 否 | O112: / | P112: 是 | Q112: 毕业 | R112: ¥0.00
A113: 108 | B113: 酒店管理与数字化运营 | C113: 1 | D113: 20220610005 | E113: 周梦婷 | F113: 0 | G113: 无 | H113: 是 | I113: 26 | J113: =VLOOKUP(D113,[1]sheet1!$A:$C,3,0) -> 261 | K113: 是 | L113: =VLOOKUP(D113,[1]sheet1!$A$1:$C$293,2,0) -> 2300 | M113: 是 | N113: 否 | O113: / | P113: 是 | Q113: 毕业 | R113: ¥0.00
A114: 109 | B114: 酒店管理与数字化运营 | C114: 1 | D114: 20220610077 | E114: 张龄 | F114: 0 | G114: 无 | H114: 是 | I114: 28 | J114: =VLOOKUP(D114,[1]sheet1!$A:$C,3,0) -> 230 | K114: 是 | L114: =VLOOKUP(D114,[1]sheet1!$A$1:$C$293,2,0) -> 2350 | M114: 是 | N114: 否 | O114: / | P114: 是 | Q114: 毕业 | R114: ¥0.00
A115: 110 | B115: 酒店管理与数字化运营 | C115: 1 | D115: 20220610096 | E115: 邱冬 | F115: 0 | G115: 无 | H115: 是 | I115: 28 | J115: =VLOOKUP(D115,[1]sheet1!$A:$C,3,0) -> 428 | K115: 是 | L115: =VLOOKUP(D115,[1]sheet1!$A$1:$C$293,2,0) -> 3080 | M115: 是 | N115: 否 | O115: / | P115: 是 | Q115: 毕业 | R115: ¥0.00
A116: 111 | B116: 酒店管理与数字化运营 | C116: 1 | D116: 20220610055 | E116: 卢佳婷 | F116: 0 | G116: 无 | H116: 是 | I116: 26 | J116: =VLOOKUP(D116,[1]sheet1!$A:$C,3,0) -> 243 | K116: 是 | L116: =VLOOKUP(D116,[1]sheet1!$A$1:$C$293,2,0) -> 2190 | M116: 是 | N116: 否 | O116: / | P116: 是 | Q116: 毕业 | R116: ¥0.00
A117: 112 | B117: 酒店管理与数字化运营 | C117: 1 | D117: 20220610074 | E117: 覃秋玉 | F117: 0 | G117: 无 | H117: 是 | I117: 28 | J117: =VLOOKUP(D117,[1]sheet1!$A:$C,3,0) -> 268 | K117: 是 | L117: =VLOOKUP(D117,[1]sheet1!$A$1:$C$293,2,0) -> 2330 | M117: 是 | N117: 否 | O117: / | P117: 是 | Q117: 毕业 | R117: ¥0.00
A118: 113 | B118: 酒店管理与数字化运营 | C118: 1 | D118: 20220610090 | E118: 董晓雨 | F118: 0 | G118: 无 | H118: 是 | I118: 27 | J118: =VLOOKUP(D118,[1]sheet1!$A:$C,3,0) -> 447 | K118: 是 | L118: =VLOOKUP(D118,[1]sheet1!$A$1:$C$293,2,0) -> 3180 | M118: 是 | N118: 否 | O118: / | P118: 是 | Q118: 毕业 | R118: ¥0.00
A119: 114 | B119: 酒店管理与数字化运营 | C119: 1 | D119: 20220610075 | E119: 熊巧艳 | F119: 0 | G119: 无 | H119: 是 | I119: 26 | J119: =VLOOKUP(D119,[1]sheet1!$A:$C,3,0) -> 268 | K119: 是 | L119: =VLOOKUP(D119,[1]sheet1!$A$1:$C$293,2,0) -> 2450 | M119: 是 | N119: 否 | O119: / | P119: 是 | Q119: 毕业 | R119: ¥0.00
A120: 115 | B120: 酒店管理与数字化运营 | C120: 1 | D120: 20220610041 | E120: 卢玉清 | F120: 0 | G120: 无 | H120: 是 | I120: 29 | J120: =VLOOKUP(D120,[1]sheet1!$A:$C,3,0) -> 303 | K120: 是 | L120: =VLOOKUP(D120,[1]sheet1!$A$1:$C$293,2,0) -> 2410 | M120: 是 | N120: 否 | O120: / | P120: 是 | Q120: 毕业 | R120: ¥0.00
A121: 116 | B121: 酒店管理与数字化运营 | C121: 1 | D121: 20220610080 | E121: 兰思俐 | F121: 0 | G121: 无 | H121: 是 | I121: 27 | J121: =VLOOKUP(D121,[1]sheet1!$A:$C,3,0) -> 298 | K121: 是 | L121: =VLOOKUP(D121,[1]sheet1!$A$1:$C$293,2,0) -> 2400 | M121: 是 | N121: 否 | O121: / | P121: 是 | Q121: 毕业 | R121: ¥0.00
A122: 117 | B122: 酒店管理与数字化运营 | C122: 1 | D122: 20220610086 | E122: 宾美苹 | F122: 0 | G122: 无 | H122: 是 | I122: 30 | J122: =VLOOKUP(D122,[1]sheet1!$A:$C,3,0) -> 400 | K122: 是 | L122: =VLOOKUP(D122,[1]sheet1!$A$1:$C$293,2,0) -> 3290 | M122: 是 | N122: 否 | O122: / | P122: 是 | Q122: 毕业 | R122: ¥0.00
A123: 118 | B123: 酒店管理与数字化运营 | C123: 1 | D123: 20220610033 | E123: 计柳萍 | F123: 0 | G123: 无 | H123: 是 | I123: 27 | J123: =VLOOKUP(D123,[1]sheet1!$A:$C,3,0) -> 443 | K123: 是 | L123: =VLOOKUP(D123,[1]sheet1!$A$1:$C$293,2,0) -> 2330 | M123: 是 | N123: 否 | O123: / | P123: 是 | Q123: 毕业 | R123: ¥0.00
A124: 119 | B124: 酒店管理与数字化运营 | C124: 1 | D124: 20220610002 | E124: 许馨妍 | F124: 0 | G124: 无 | H124: 是 | I124: 26 | J124: =VLOOKUP(D124,[1]sheet1!$A:$C,3,0) -> 266 | K124: 是 | L124: =VLOOKUP(D124,[1]sheet1!$A$1:$C$293,2,0) -> 2780 | M124: 是 | N124: 否 | O124: / | P124: 是 | Q124: 毕业 | R124: ¥0.00
A125: 120 | B125: 酒店管理与数字化运营 | C125: 1 | D125: 20220610049 | E125: 龚德宇 | F125: 0 | G125: 无 | H125: 是 | I125: 30 | J125: =VLOOKUP(D125,[1]sheet1!$A:$C,3,0) -> 256 | K125: 是 | L125: =VLOOKUP(D125,[1]sheet1!$A$1:$C$293,2,0) -> 2410 | M125: 是 | N125: 否 | O125: / | P125: 是 | Q125: 毕业 | R125: ¥0.00
A126: 121 | B126: 酒店管理与数字化运营 | C126: 1 | D126: 20220610022 | E126: 黄良华 | F126: 0 | G126: 无 | H126: 是 | I126: 30 | J126: =VLOOKUP(D126,[1]sheet1!$A:$C,3,0) -> 452 | K126: 是 | L126: =VLOOKUP(D126,[1]sheet1!$A$1:$C$293,2,0) -> 3350 | M126: 是 | N126: 否 | O126: / | P126: 是 | Q126: 毕业 | R126: ¥0.00
A127: 122 | B127: 酒店管理与数字化运营 | C127: 1 | D127: 20220601096 | E127: 潘怡红 | F127: 0 | G127: 无 | H127: 是 | I127: 27 | J127: =VLOOKUP(D127,[1]sheet1!$A:$C,3,0) -> 365 | K127: 是 | L127: =VLOOKUP(D127,[1]sheet1!$A$1:$C$293,2,0) -> 3100 | M127: 是 | N127: 否 | O127: / | P127: 是 | Q127: 毕业 | R127: ¥0.00
A128: 123 | B128: 酒店管理与数字化运营 | C128: 1 | D128: 20220610034 | E128: 龙佳怡 | F128: 0 | G128: 无 | H128: 是 | I128: 27 | J128: =VLOOKUP(D128,[1]sheet1!$A:$C,3,0) -> 323 | K128: 是 | L128: =VLOOKUP(D128,[1]sheet1!$A$1:$C$293,2,0) -> 2510 | M128: 是 | N128: 否 | O128: / | P128: 是 | Q128: 毕业 | R128: ¥0.00
A129: 124 | B129: 酒店管理与数字化运营 | C129: 1 | D129: 20220610039 | E129: 郑乐滢 | F129: 0 | G129: 无 | H129: 是 | I129: 26 | J129: =VLOOKUP(D129,[1]sheet1!$A:$C,3,0) -> 264 | K129: 是 | L129: =VLOOKUP(D129,[1]sheet1!$A$1:$C$293,2,0) -> 2370 | M129: 是 | N129: 否 | O129: / | P129: 是 | Q129: 毕业 | R129: ¥0.00
A130: 125 | B130: 酒店管理与数字化运营 | C130: 1 | D130: 20220610038 | E130: 潘冬梅 | F130: 0 | G130: 无 | H130: 是 | I130: 30 | J130: =VLOOKUP(D130,[1]sheet1!$A:$C,3,0) -> 414 | K130: 是 | L130: =VLOOKUP(D130,[1]sheet1!$A$1:$C$293,2,0) -> 2610 | M130: 是 | N130: 否 | O130: / | P130: 是 | Q130: 毕业 | R130: ¥0.00
A131: 126 | B131: 酒店管理与数字化运营 | C131: 1 | D131: 20220610063 | E131: 覃玲玲 | F131: 0 | G131: 无 | H131: 是 | I131: 30 | J131: =VLOOKUP(D131,[1]sheet1!$A:$C,3,0) -> 392 | K131: 是 | L131: =VLOOKUP(D131,[1]sheet1!$A$1:$C$293,2,0) -> 2490 | M131: 是 | N131: 否 | O131: / | P131: 是 | Q131: 毕业 | R131: ¥0.00
A132: 127 | B132: 酒店管理与数字化运营 | C132: 1 | D132: 20220610079 | E132: 吴远琦 | F132: 0 | G132: 无 | H132: 是 | I132: 27 | J132: =VLOOKUP(D132,[1]sheet1!$A:$C,3,0) -> 298 | K132: 是 | L132: =VLOOKUP(D132,[1]sheet1!$A$1:$C$293,2,0) -> 2250 | M132: 是 | N132: 否 | O132: / | P132: 是 | Q132: 毕业 | R132: ¥0.00
A133: 128 | B133: 酒店管理与数字化运营 | C133: 1 | D133: 20220610078 | E133: 潘志双 | F133: 0 | G133: 无 | H133: 是 | I133: 26 | J133: =VLOOKUP(D133,[1]sheet1!$A:$C,3,0) -> 255 | K133: 是 | L133: =VLOOKUP(D133,[1]sheet1!$A$1:$C$293,2,0) -> 2060 | M133: 是 | N133: 否 | O133: / | P133: 是 | Q133: 毕业 | R133: ¥0.00
A134: 129 | B134: 酒店管理与数字化运营 | C134: 1 | D134: 20220610017 | E134: 张鸿宇 | F134: 0 | G134: 无 | H134: 是 | I134: 30 | J134: =VLOOKUP(D134,[1]sheet1!$A:$C,3,0) -> 370 | K134: 是 | L134: =VLOOKUP(D134,[1]sheet1!$A$1:$C$293,2,0) -> 2840 | M134: 是 | N134: 否 | O134: / | P134: 是 | Q134: 毕业 | R134: ¥0.00
A135: 130 | B135: 酒店管理与数字化运营 | C135: 1 | D135: 20220506124 | E135: 陈静雯 | F135: 0 | G135: 无 | H135: 是 | I135: 28 | J135: =VLOOKUP(D135,[1]sheet1!$A:$C,3,0) -> 248 | K135: 是 | L135: =VLOOKUP(D135,[1]sheet1!$A$1:$C$293,2,0) -> 1930 | M135: 是 | N135: 否 | O135: / | P135: 是 | Q135: 毕业 | R135: ¥0.00
A136: 131 | B136: 酒店管理与数字化运营 | C136: 1 | D136: 20220610024 | E136: 马伟斌 | F136: 0 | G136: 无 | H136: 是 | I136: 30 | J136: =VLOOKUP(D136,[1]sheet1!$A:$C,3,0) -> 356 | K136: 是 | L136: =VLOOKUP(D136,[1]sheet1!$A$1:$C$293,2,0) -> 2840 | M136: 是 | N136: 否 | O136: / | P136: 是 | Q136: 毕业 | R136: ¥0.00
A137: 132 | B137: 酒店管理与数字化运营 | C137: 1 | D137: 20220610016 | E137: 胡玲玲 | F137: 0 | G137: 无 | H137: 是 | I137: 28 | J137: =VLOOKUP(D137,[1]sheet1!$A:$C,3,0) -> 255 | K137: 是 | L137: =VLOOKUP(D137,[1]sheet1!$A$1:$C$293,2,0) -> 2150 | M137: 是 | N137: 否 | O137: / | P137: 是 | Q137: 毕业 | R137: ¥0.00
A138: 133 | B138: 酒店管理与数字化运营 | C138: 1 | D138: 20220610028 | E138: 黄金媛 | F138: 0 | G138: 无 | H138: 是 | I138: 28 | J138: =VLOOKUP(D138,[1]sheet1!$A:$C,3,0) -> 373 | K138: 是 | L138: =VLOOKUP(D138,[1]sheet1!$A$1:$C$293,2,0) -> 2200 | M138: 是 | N138: 否 | O138: / | P138: 是 | Q138: 毕业 | R138: ¥0.00
A139: 134 | B139: 酒店管理与数字化运营 | C139: 2 | D139: 20220610081 | E139: 王光蕾 | F139: 0 | G139: 无 | H139: 是 | I139: 28 | J139: =VLOOKUP(D139,[1]sheet1!$A:$C,3,0) -> 312 | K139: 是 | L139: =VLOOKUP(D139,[1]sheet1!$A$1:$C$293,2,0) -> 2750 | M139: 是 | N139: 否 | O139: / | P139: 是 | Q139: 毕业 | R139: ¥0.00
A140: 135 | B140: 酒店管理与数字化运营 | C140: 2 | D140: 20220610020 | E140: 覃新琪 | F140: 0 | G140: 无 | H140: 是 | I140: 28 | J140: =VLOOKUP(D140,[1]sheet1!$A:$C,3,0) -> 266 | K140: 是 | L140: =VLOOKUP(D140,[1]sheet1!$A$1:$C$293,2,0) -> 1880 | M140: 是 | N140: 否 | O140: / | P140: 是 | Q140: 毕业 | R140: ¥0.00
A141: 136 | B141: 酒店管理与数字化运营 | C141: 2 | D141: 20220610092 | E141: 吴晓丹 | F141: 0 | G141: 无 | H141: 是 | I141: 27 | J141: =VLOOKUP(D141,[1]sheet1!$A:$C,3,0) -> 284 | K141: 是 | L141: =VLOOKUP(D141,[1]sheet1!$A$1:$C$293,2,0) -> 2170 | M141: 是 | N141: 否 | O141: / | P141: 是 | Q141: 毕业 | R141: ¥0.00
A142: 137 | B142: 酒店管理与数字化运营 | C142: 2 | D142: 20220610010 | E142: 李敏 | F142: 0 | G142: 无 | H142: 是 | I142: 28 | J142: =VLOOKUP(D142,[1]sheet1!$A:$C,3,0) -> 245 | K142: 是 | L142: =VLOOKUP(D142,[1]sheet1!$A$1:$C$293,2,0) -> 2100 | M142: 是 | N142: 否 | O142: / | P142: 是 | Q142: 毕业 | R142: ¥0.00
A143: 138 | B143: 酒店管理与数字化运营 | C143: 2 | D143: 20220610066 | E143: 魏怡 | F143: 0 | G143: 无 | H143: 是 | I143: 26 | J143: =VLOOKUP(D143,[1]sheet1!$A:$C,3,0) -> 261 | K143: 是 | L143: =VLOOKUP(D143,[1]sheet1!$A$1:$C$293,2,0) -> 2280 | M143: 是 | N143: 否 | O143: / | P143: 是 | Q143: 毕业 | R143: ¥0.00
A144: 139 | B144: 酒店管理与数字化运营 | C144: 2 | D144: 20220610098 | E144: 覃舒妍 | F144: 0 | G144: 无 | H144: 是 | I144: 29 | J144: =VLOOKUP(D144,[1]sheet1!$A:$C,3,0) -> 225 | K144: 是 | L144: =VLOOKUP(D144,[1]sheet1!$A$1:$C$293,2,0) -> 2120 | M144: 是 | N144: 否 | O144: / | P144: 是 | Q144: 毕业 | R144: ¥0.00
A145: 140 | B145: 酒店管理与数字化运营 | C145: 2 | D145: 20220610060 | E145: 周水英 | F145: 0 | G145: 无 | H145: 是 | I145: 27 | J145: =VLOOKUP(D145,[1]sheet1!$A:$C,3,0) -> 320 | K145: 是 | L145: =VLOOKUP(D145,[1]sheet1!$A$1:$C$293,2,0) -> 2420 | M145: 是 | N145: 否 | O145: / | P145: 是 | Q145: 毕业 | R145: ¥0.00
A146: 141 | B146: 酒店管理与数字化运营 | C146: 2 | D146: 20220610009 | E146: 梁健婷 | F146: 0 | G146: 无 | H146: 是 | I146: 28 | J146: =VLOOKUP(D146,[1]sheet1!$A:$C,3,0) -> 609 | K146: 是 | L146: =VLOOKUP(D146,[1]sheet1!$A$1:$C$293,2,0) -> 2790 | M146: 是 | N146: 否 | O146: / | P146: 是 | Q146: 毕业 | R146: ¥0.00
A147: 142 | B147: 酒店管理与数字化运营 | C147: 2 | D147: 20220610091 | E147: 林鸿晴 | F147: 0 | G147: 无 | H147: 是 | I147: 28 | J147: =VLOOKUP(D147,[1]sheet1!$A:$C,3,0) -> 343 | K147: 是 | L147: =VLOOKUP(D147,[1]sheet1!$A$1:$C$293,2,0) -> 2750 | M147: 是 | N147: 否 | O147: / | P147: 是 | Q147: 毕业 | R147: ¥0.00
A148: 143 | B148: 酒店管理与数字化运营 | C148: 2 | D148: 20220610007 | E148: 黄雅倩 | F148: 0 | G148: 无 | H148: 是 | I148: 31 | J148: =VLOOKUP(D148,[1]sheet1!$A:$C,3,0) -> 265 | K148: 是 | L148: =VLOOKUP(D148,[1]sheet1!$A$1:$C$293,2,0) -> 2070 | M148: 是 | N148: 否 | O148: / | P148: 是 | Q148: 毕业 | R148: ¥0.00
A149: 144 | B149: 酒店管理与数字化运营 | C149: 2 | D149: 20220610037 | E149: 韦爱琴 | F149: 0 | G149: 无 | H149: 是 | I149: 27 | J149: =VLOOKUP(D149,[1]sheet1!$A:$C,3,0) -> 276 | K149: 是 | L149: =VLOOKUP(D149,[1]sheet1!$A$1:$C$293,2,0) -> 2640 | M149: 是 | N149: 否 | O149: / | P149: 是 | Q149: 毕业 | R149: ¥0.00
A150: 145 | B150: 酒店管理与数字化运营 | C150: 2 | D150: 20220610053 | E150: 黄春妍 | F150: 0 | G150: 无 | H150: 是 | I150: 28 | J150: =VLOOKUP(D150,[1]sheet1!$A:$C,3,0) -> 293 | K150: 是 | L150: =VLOOKUP(D150,[1]sheet1!$A$1:$C$293,2,0) -> 2450 | M150: 是 | N150: 否 | O150: / | P150: 是 | Q150: 毕业 | R150: ¥0.00
A151: 146 | B151: 酒店管理与数字化运营 | C151: 2 | D151: 20220610029 | E151: 罗建华 | F151: 0 | G151: 无 | H151: 是 | I151: 30 | J151: =VLOOKUP(D151,[1]sheet1!$A:$C,3,0) -> 249 | K151: 是 | L151: =VLOOKUP(D151,[1]sheet1!$A$1:$C$293,2,0) -> 1870 | M151: 是 | N151: 否 | O151: / | P151: 是 | Q151: 毕业 | R151: ¥0.00
A152: 147 | B152: 酒店管理与数字化运营 | C152: 2 | D152: 20220610015 | E152: 罗秀华 | F152: 0 | G152: 无 | H152: 是 | I152: 29 | J152: =VLOOKUP(D152,[1]sheet1!$A:$C,3,0) -> 263 | K152: 是 | L152: =VLOOKUP(D152,[1]sheet1!$A$1:$C$293,2,0) -> 2280 | M152: 是 | N152: 否 | O152: / | P152: 是 | Q152: 毕业 | R152: ¥0.00
A153: 148 | B153: 酒店管理与数字化运营 | C153: 2 | D153: 20220610018 | E153: 罗武涛 | F153: 0 | G153: 无 | H153: 是 | I153: 29 | J153: =VLOOKUP(D153,[1]sheet1!$A:$C,3,0) -> 240 | K153: 是 | L153: =VLOOKUP(D153,[1]sheet1!$A$1:$C$293,2,0) -> 1880 | M153: 是 | N153: 否 | O153: / | P153: 是 | Q153: 毕业 | R153: ¥0.00
A154: 149 | B154: 酒店管理与数字化运营 | C154: 2 | D154: 20220610068 | E154: 林玲 | F154: 0 | G154: 无 | H154: 是 | I154: 27 | J154: =VLOOKUP(D154,[1]sheet1!$A:$C,3,0) -> 261 | K154: 是 | L154: =VLOOKUP(D154,[1]sheet1!$A$1:$C$293,2,0) -> 2280 | M154: 是 | N154: 否 | O154: / | P154: 是 | Q154: 毕业 | R154: ¥0.00
A155: 150 | B155: 酒店管理与数字化运营 | C155: 2 | D155: 20220610089 | E155: 马胜钊 | F155: 0 | G155: 无 | H155: 是 | I155: 32 | J155: =VLOOKUP(D155,[1]sheet1!$A:$C,3,0) -> 273 | K155: 是 | L155: =VLOOKUP(D155,[1]sheet1!$A$1:$C$293,2,0) -> 1970 | M155: 是 | N155: 否 | O155: / | P155: 是 | Q155: 毕业 | R155: ¥0.00
A156: 151 | B156: 酒店管理与数字化运营 | C156: 2 | D156: 20220610014 | E156: 韦明 | F156: 0 | G156: 无 | H156: 是 | I156: 30 | J156: =VLOOKUP(D156,[1]sheet1!$A:$C,3,0) -> 237 | K156: 是 | L156: =VLOOKUP(D156,[1]sheet1!$A$1:$C$293,2,0) -> 1890 | M156: 是 | N156: 否 | O156: / | P156: 是 | Q156: 毕业 | R156: ¥0.00
A157: 152 | B157: 酒店管理与数字化运营 | C157: 2 | D157: 20220610085 | E157: 曾洲莉 | F157: 0 | G157: 无 | H157: 是 | I157: 28 | J157: =VLOOKUP(D157,[1]sheet1!$A:$C,3,0) -> 451 | K157: 是 | L157: =VLOOKUP(D157,[1]sheet1!$A$1:$C$293,2,0) -> 2520 | M157: 是 | N157: 否 | O157: / | P157: 是 | Q157: 毕业 | R157: ¥0.00
A158: 153 | B158: 酒店管理与数字化运营 | C158: 2 | D158: 20220610064 | E158: 吴妮斯 | F158: 0 | G158: 无 | H158: 是 | I158: 30 | J158: =VLOOKUP(D158,[1]sheet1!$A:$C,3,0) -> 251 | K158: 是 | L158: =VLOOKUP(D158,[1]sheet1!$A$1:$C$293,2,0) -> 2010 | M158: 是 | N158: 否 | O158: / | P158: 是 | Q158: 毕业 | R158: ¥0.00
A159: 154 | B159: 酒店管理与数字化运营 | C159: 2 | D159: 20220610043 | E159: 韦志杭 | F159: 0 | G159: 无 | H159: 是 | I159: 30 | J159: =VLOOKUP(D159,[1]sheet1!$A:$C,3,0) -> 250 | K159: 是 | L159: 1850 | M159: 是 | N159: 否 | O159: / | P159: 是 | Q159: 毕业 | R159: ¥0.00
A160: 155 | B160: 酒店管理与数字化运营 | C160: 2 | D160: 20220610056 | E160: 张裕雪 | F160: 0 | G160: 无 | H160: 是 | I160: 29 | J160: =VLOOKUP(D160,[1]sheet1!$A:$C,3,0) -> 303 | K160: 是 | L160: =VLOOKUP(D160,[1]sheet1!$A$1:$C$293,2,0) -> 2070 | M160: 是 | N160: 否 | O160: / | P160: 是 | Q160: 毕业 | R160: ¥0.00
A161: 156 | B161: 酒店管理与数字化运营 | C161: 2 | D161: 20220610051 | E161: 韦佳琪 | F161: 0 | G161: 无 | H161: 是 | I161: 28 | J161: =VLOOKUP(D161,[1]sheet1!$A:$C,3,0) -> 291 | K161: 是 | L161: =VLOOKUP(D161,[1]sheet1!$A$1:$C$293,2,0) -> 2400 | M161: 是 | N161: 否 | O161: / | P161: 是 | Q161: 毕业 | R161: ¥0.00
A162: 157 | B162: 酒店管理与数字化运营 | C162: 2 | D162: 20220610067 | E162: 刘其彤 | F162: 0 | G162: 无 | H162: 是 | I162: 27 | J162: =VLOOKUP(D162,[1]sheet1!$A:$C,3,0) -> 253 | K162: 是 | L162: =VLOOKUP(D162,[1]sheet1!$A$1:$C$293,2,0) -> 2230 | M162: 是 | N162: 否 | O162: / | P162: 是 | Q162: 毕业 | R162: ¥0.00
A163: 158 | B163: 酒店管理与数字化运营 | C163: 2 | D163: 20220610072 | E163: 甘璐梦 | F163: 0 | G163: 无 | H163: 是 | I163: 28 | J163: =VLOOKUP(D163,[1]sheet1!$A:$C,3,0) -> 253 | K163: 是 | L163: =VLOOKUP(D163,[1]sheet1!$A$1:$C$293,2,0) -> 2330 | M163: 是 | N163: 否 | O163: / | P163: 是 | Q163: 毕业 | R163: ¥0.00
A164: 159 | B164: 酒店管理与数字化运营 | C164: 2 | D164: 20220610031 | E164: 蒋雅芳 | F164: 0 | G164: 无 | H164: 是 | I164: 30 | J164: =VLOOKUP(D164,[1]sheet1!$A:$C,3,0) -> 263 | K164: 是 | L164: =VLOOKUP(D164,[1]sheet1!$A$1:$C$293,2,0) -> 2350 | M164: 是 | N164: 否 | O164: / | P164: 是 | Q164: 毕业 | R164: ¥0.00
A165: 160 | B165: 酒店管理与数字化运营 | C165: 2 | D165: 20220610084 | E165: 李俐霖 | F165: 0 | G165: 无 | H165: 是 | I165: 27 | J165: =VLOOKUP(D165,[1]sheet1!$A:$C,3,0) -> 372 | K165: 是 | L165: =VLOOKUP(D165,[1]sheet1!$A$1:$C$293,2,0) -> 2440 | M165: 是 | N165: 否 | O165: / | P165: 是 | Q165: 毕业 | R165: ¥0.00
A166: 161 | B166: 酒店管理与数字化运营 | C166: 2 | D166: 20220610050 | E166: 熊明基 | F166: 0 | G166: 无 | H166: 是 | I166: 30 | J166: =VLOOKUP(D166,[1]sheet1!$A:$C,3,0) -> 266 | K166: 是 | L166: =VLOOKUP(D166,[1]sheet1!$A$1:$C$293,2,0) -> 2390 | M166: 是 | N166: 否 | O166: / | P166: 是 | Q166: 毕业 | R166: ¥0.00
A167: 162 | B167: 酒店管理与数字化运营 | C167: 2 | D167: 20220610012 | E167: 农秋媚 | F167: 0 | G167: 无 | H167: 是 | I167: 26 | J167: =VLOOKUP(D167,[1]sheet1!$A:$C,3,0) -> 278 | K167: 是 | L167: =VLOOKUP(D167,[1]sheet1!$A$1:$C$293,2,0) -> 2270 | M167: 是 | N167: 否 | O167: / | P167: 是 | Q167: 毕业 | R167: ¥0.00
A168: 163 | B168: 旅游管理 | C168: 1 | D168: 20210604019 | E168: 吴莉萍 | F168: 7 | G168: 短视频营销、直播营销、全国导游基础（三）、劳动教育—工业·匠心、经济数学、习近平新时代中国特色社会主义思想概论、创新与创业实务（二） | H168: 是 | I168: 15 | J168: =VLOOKUP(D168,[1]sheet1!$A:$C,3,0) -> 262 | K168: 是 | L168: =VLOOKUP(D168,[1]sheet1!$A$1:$C$293,2,0) -> 2370 | M168: 是 | N168: 否 | O168: / | P168: 否 | Q168: 结业 | R168: ¥853.71 | S168: 1
A169: 164 | B169: 旅游管理 | C169: 1 | D169: 20210604097 | E169: 韦婧娜 | F169: 0 | G169: 无 | H169: 是 | I169: 26.5 | J169: =VLOOKUP(D169,[1]sheet1!$A:$C,3,0) -> 249 | K169: 是 | L169: =VLOOKUP(D169,[1]sheet1!$A$1:$C$293,2,0) -> 2650 | M169: 是 | N169: 否 | O169: / | P169: 是 | Q169: 毕业 | R169: ¥0.00
A170: 165 | B170: 旅游管理 | C170: 1 | D170: 20220604002 | E170: 方冬锾 | F170: 0 | G170: 无 | H170: 是 | I170: 26.5 | J170: =VLOOKUP(D170,[1]sheet1!$A:$C,3,0) -> 231 | K170: 是 | L170: =VLOOKUP(D170,[1]sheet1!$A$1:$C$293,2,0) -> 2190 | M170: 是 | N170: 否 | O170: / | P170: 是 | Q170: 毕业 | R170: ¥0.00
A171: 166 | B171: 旅游管理 | C171: 1 | D171: 20220604003 | E171: 黎巧妮 | F171: 0 | G171: 无 | H171: 是 | I171: 24.5 | J171: =VLOOKUP(D171,[1]sheet1!$A:$C,3,0) -> 229 | K171: 是 | L171: =VLOOKUP(D171,[1]sheet1!$A$1:$C$293,2,0) -> 2080 | M171: 是 | N171: 否 | O171: / | P171: 是 | Q171: 毕业 | R171: ¥0.00
A172: 167 | B172: 旅游管理 | C172: 1 | D172: 20220604004 | E172: 赵珊琴 | F172: 0 | G172: 无 | H172: 是 | I172: 26.5 | J172: =VLOOKUP(D172,[1]sheet1!$A:$C,3,0) -> 246 | K172: 是 | L172: =VLOOKUP(D172,[1]sheet1!$A$1:$C$293,2,0) -> 2150 | M172: 是 | N172: 否 | O172: / | P172: 是 | Q172: 毕业 | R172: ¥0.00
A173: 168 | B173: 旅游管理 | C173: 1 | D173: 20220604008 | E173: 顾荣英 | F173: 0 | G173: 无 | H173: 是 | I173: 26.5 | J173: =VLOOKUP(D173,[1]sheet1!$A:$C,3,0) -> 238 | K173: 是 | L173: =VLOOKUP(D173,[1]sheet1!$A$1:$C$293,2,0) -> 2230 | M173: 是 | N173: 否 | O173: / | P173: 是 | Q173: 毕业 | R173: ¥0.00
A174: 169 | B174: 旅游管理 | C174: 1 | D174: 20220604009 | E174: 梁爽 | F174: 0 | G174: 无 | H174: 是 | I174: 26.5 | J174: =VLOOKUP(D174,[1]sheet1!$A:$C,3,0) -> 229 | K174: 是 | L174: =VLOOKUP(D174,[1]sheet1!$A$1:$C$293,2,0) -> 2130 | M174: 是 | N174: 否 | O174: / | P174: 是 | Q174: 毕业 | R174: ¥0.00
A175: 170 | B175: 旅游管理 | C175: 1 | D175: 20220604015 | E175: 邱家爵 | F175: 0 | G175: 无 | H175: 是 | I175: 28.5 | J175: =VLOOKUP(D175,[1]sheet1!$A:$C,3,0) -> 225 | K175: 是 | L175: =VLOOKUP(D175,[1]sheet1!$A$1:$C$293,2,0) -> 2300 | M175: 是 | N175: 否 | O175: / | P175: 是 | Q175: 毕业 | R175: ¥0.00
A176: 171 | B176: 旅游管理 | C176: 1 | D176: 20220604021 | E176: 陀辉 | F176: 0 | G176: 无 | H176: 是 | I176: 25.5 | J176: =VLOOKUP(D176,[1]sheet1!$A:$C,3,0) -> 230 | K176: 是 | L176: =VLOOKUP(D176,[1]sheet1!$A$1:$C$293,2,0) -> 2400 | M176: 是 | N176: 否 | O176: / | P176: 是 | Q176: 毕业 | R176: ¥0.00
A177: 172 | B177: 旅游管理 | C177: 1 | D177: 20220604027 | E177: 于传伟 | F177: 0 | G177: 无 | H177: 是 | I177: 24.5 | J177: =VLOOKUP(D177,[1]sheet1!$A:$C,3,0) -> 228 | K177: 是 | L177: =VLOOKUP(D177,[1]sheet1!$A$1:$C$293,2,0) -> 2030 | M177: 是 | N177: 否 | O177: / | P177: 是 | Q177: 毕业 | R177: ¥0.00
A178: 173 | B178: 旅游管理 | C178: 1 | D178: 20220604028 | E178: 梅代成 | F178: 0 | G178: 无 | H178: 是 | I178: 25.5 | J178: =VLOOKUP(D178,[1]sheet1!$A:$C,3,0) -> 264 | K178: 是 | L178: =VLOOKUP(D178,[1]sheet1!$A$1:$C$293,2,0) -> 2200 | M178: 是 | N178: 否 | O178: / | P178: 是 | Q178: 毕业 | R178: ¥0.00
A179: 174 | B179: 旅游管理 | C179: 1 | D179: 20220604030 | E179: 陆能真 | F179: 0 | G179: 无 | H179: 是 | I179: 25.5 | J179: =VLOOKUP(D179,[1]sheet1!$A:$C,3,0) -> 261 | K179: 是 | L179: =VLOOKUP(D179,[1]sheet1!$A$1:$C$293,2,0) -> 1980 | M179: 是 | N179: 否 | O179: / | P179: 是 | Q179: 毕业 | R179: ¥0.00
A180: 175 | B180: 旅游管理 | C180: 1 | D180: 20220604031 | E180: 黄佳莉 | F180: 0 | G180: 无 | H180: 是 | I180: 28.5 | J180: =VLOOKUP(D180,[1]sheet1!$A:$C,3,0) -> 321 | K180: 是 | L180: =VLOOKUP(D180,[1]sheet1!$A$1:$C$293,2,0) -> 2520 | M180: 是 | N180: 否 | O180: / | P180: 是 | Q180: 毕业 | R180: ¥0.00
A181: 176 | B181: 旅游管理 | C181: 1 | D181: 20220604032 | E181: 陆欣 | F181: 0 | G181: 无 | H181: 是 | I181: 27.5 | J181: =VLOOKUP(D181,[1]sheet1!$A:$C,3,0) -> 219 | K181: 是 | L181: =VLOOKUP(D181,[1]sheet1!$A$1:$C$293,2,0) -> 2250 | M181: 是 | N181: 否 | O181: / | P181: 是 | Q181: 毕业 | R181: ¥0.00
A182: 177 | B182: 旅游管理 | C182: 1 | D182: 20220604033 | E182: 叶师宏 | F182: 0 | G182: 无 | H182: 是 | I182: 24.5 | J182: =VLOOKUP(D182,[1]sheet1!$A:$C,3,0) -> 227 | K182: 是 | L182: =VLOOKUP(D182,[1]sheet1!$A$1:$C$293,2,0) -> 2170 | M182: 是 | N182: 否 | O182: / | P182: 是 | Q182: 毕业 | R182: ¥0.00
A183: 178 | B183: 旅游管理 | C183: 1 | D183: 20220604035 | E183: 陈艺玲 | F183: 0 | G183: 无 | H183: 是 | I183: 28.5 | J183: =VLOOKUP(D183,[1]sheet1!$A:$C,3,0) -> 229 | K183: 是 | L183: =VLOOKUP(D183,[1]sheet1!$A$1:$C$293,2,0) -> 2170 | M183: 是 | N183: 否 | O183: / | P183: 是 | Q183: 毕业 | R183: ¥0.00
A184: 179 | B184: 旅游管理 | C184: 1 | D184: 20220604037 | E184: 谢彩莹 | F184: 0 | G184: 无 | H184: 是 | I184: 25.5 | J184: =VLOOKUP(D184,[1]sheet1!$A:$C,3,0) -> 244 | K184: 是 | L184: =VLOOKUP(D184,[1]sheet1!$A$1:$C$293,2,0) -> 2090 | M184: 是 | N184: 否 | O184: / | P184: 是 | Q184: 毕业 | R184: ¥0.00
A185: 180 | B185: 旅游管理 | C185: 1 | D185: 20220604038 | E185: 蒋冬云 | F185: 0 | G185: 无 | H185: 是 | I185: 28.5 | J185: =VLOOKUP(D185,[1]sheet1!$A:$C,3,0) -> 327 | K185: 是 | L185: =VLOOKUP(D185,[1]sheet1!$A$1:$C$293,2,0) -> 3440 | M185: 是 | N185: 否 | O185: / | P185: 是 | Q185: 毕业 | R185: ¥0.00
A186: 181 | B186: 旅游管理 | C186: 1 | D186: 20220604039 | E186: 谭炎林 | F186: 0 | G186: 无 | H186: 是 | I186: 25.5 | J186: =VLOOKUP(D186,[1]sheet1!$A:$C,3,0) -> 239 | K186: 是 | L186: =VLOOKUP(D186,[1]sheet1!$A$1:$C$293,2,0) -> 2340 | M186: 是 | N186: 否 | O186: / | P186: 是 | Q186: 毕业 | R186: ¥0.00
A187: 182 | B187: 旅游管理 | C187: 1 | D187: 20220604040 | E187: 苏会琪 | F187: 0 | G187: 无 | H187: 是 | I187: 26.5 | J187: =VLOOKUP(D187,[1]sheet1!$A:$C,3,0) -> 272 | K187: 是 | L187: =VLOOKUP(D187,[1]sheet1!$A$1:$C$293,2,0) -> 2710 | M187: 是 | N187: 否 | O187: / | P187: 是 | Q187: 毕业 | R187: ¥0.00
A188: 183 | B188: 旅游管理 | C188: 1 | D188: 20220604042 | E188: 陈俊杰 | F188: 0 | G188: 无 | H188: 是 | I188: 19.5 | J188: =VLOOKUP(D188,[1]sheet1!$A:$C,3,0) -> 233 | K188: 是 | L188: =VLOOKUP(D188,[1]sheet1!$A$1:$C$293,2,0) -> 2060 | M188: 是 | N188: 否 | O188: / | P188: 是 | Q188: 毕业 | R188: ¥0.00
A189: 184 | B189: 旅游管理 | C189: 1 | D189: 20220604043 | E189: 张忠丽 | F189: 0 | G189: 无 | H189: 是 | I189: 25.5 | J189: =VLOOKUP(D189,[1]sheet1!$A:$C,3,0) -> 224 | K189: 是 | L189: =VLOOKUP(D189,[1]sheet1!$A$1:$C$293,2,0) -> 2330 | M189: 是 | N189: 否 | O189: / | P189: 是 | Q189: 毕业 | R189: ¥0.00
A190: 185 | B190: 旅游管理 | C190: 1 | D190: 20220604046 | E190: 万宇婷 | F190: 0 | G190: 无 | H190: 是 | I190: 26.5 | J190: =VLOOKUP(D190,[1]sheet1!$A:$C,3,0) -> 358 | K190: 是 | L190: =VLOOKUP(D190,[1]sheet1!$A$1:$C$293,2,0) -> 2760 | M190: 是 | N190: 否 | O190: / | P190: 是 | Q190: 毕业 | R190: ¥0.00
A191: 186 | B191: 旅游管理 | C191: 1 | D191: 20220604048 | E191: 陆业兴 | F191: 0 | G191: 无 | H191: 是 | I191: 24.5 | J191: =VLOOKUP(D191,[1]sheet1!$A:$C,3,0) -> 236 | K191: 是 | L191: =VLOOKUP(D191,[1]sheet1!$A$1:$C$293,2,0) -> 1930 | M191: 是 | N191: 否 | O191: / | P191: 是 | Q191: 毕业 | R191: ¥0.00
A192: 187 | B192: 旅游管理 | C192: 1 | D192: 20220604050 | E192: 李佳妤 | F192: 0 | G192: 无 | H192: 是 | I192: 25.5 | J192: =VLOOKUP(D192,[1]sheet1!$A:$C,3,0) -> 264 | K192: 是 | L192: =VLOOKUP(D192,[1]sheet1!$A$1:$C$293,2,0) -> 2390 | M192: 是 | N192: 否 | O192: / | P192: 是 | Q192: 毕业 | R192: ¥0.00
A193: 188 | B193: 旅游管理 | C193: 1 | D193: 20220604052 | E193: 凌文珍 | F193: 0 | G193: 无 | H193: 是 | I193: 25.5 | J193: =VLOOKUP(D193,[1]sheet1!$A:$C,3,0) -> 221 | K193: 是 | L193: =VLOOKUP(D193,[1]sheet1!$A$1:$C$293,2,0) -> 2170 | M193: 是 | N193: 否 | O193: / | P193: 是 | Q193: 毕业 | R193: ¥0.00
A194: 189 | B194: 旅游管理 | C194: 1 | D194: 20220604053 | E194: 文国栋 | F194: 0 | G194: 无 | H194: 是 | I194: 23.5 | J194: =VLOOKUP(D194,[1]sheet1!$A:$C,3,0) -> 335 | K194: 是 | L194: =VLOOKUP(D194,[1]sheet1!$A$1:$C$293,2,0) -> 1880 | M194: 是 | N194: 否 | O194: / | P194: 是 | Q194: 毕业 | R194: ¥0.00
A195: 190 | B195: 旅游管理 | C195: 1 | D195: 20220604056 | E195: 钟兴弟 | F195: 0 | G195: 无 | H195: 是 | I195: 28.5 | J195: =VLOOKUP(D195,[1]sheet1!$A:$C,3,0) -> 300 | K195: 是 | L195: =VLOOKUP(D195,[1]sheet1!$A$1:$C$293,2,0) -> 2490 | M195: 是 | N195: 否 | O195: / | P195: 是 | Q195: 毕业 | R195: ¥0.00
A196: 191 | B196: 旅游管理 | C196: 1 | D196: 20220604057 | E196: 苏慧玫 | F196: 0 | G196: 无 | H196: 是 | I196: 26.5 | J196: =VLOOKUP(D196,[1]sheet1!$A:$C,3,0) -> 227 | K196: 是 | L196: =VLOOKUP(D196,[1]sheet1!$A$1:$C$293,2,0) -> 2040 | M196: 是 | N196: 否 | O196: / | P196: 是 | Q196: 毕业 | R196: ¥0.00
A197: 192 | B197: 旅游管理 | C197: 1 | D197: 20220604059 | E197: 庞容宁 | F197: 0 | G197: 无 | H197: 是 | I197: 26.5 | J197: =VLOOKUP(D197,[1]sheet1!$A:$C,3,0) -> 234 | K197: 是 | L197: =VLOOKUP(D197,[1]sheet1!$A$1:$C$293,2,0) -> 2540 | M197: 是 | N197: 否 | O197: / | P197: 是 | Q197: 毕业 | R197: ¥0.00
A198: 193 | B198: 旅游管理 | C198: 1 | D198: 20220604063 | E198: 苏颖雯 | F198: 0 | G198: 无 | H198: 是 | I198: 24.5 | J198: =VLOOKUP(D198,[1]sheet1!$A:$C,3,0) -> 243 | K198: 是 | L198: 1720 | M198: 否 | N198: 否 | O198: / | P198: 否 | Q198: 结业 | R198: ¥6,693.83 | S198: 3
A199: 194 | B199: 旅游管理 | C199: 1 | D199: 20220604064 | E199: 韦秋艳 | F199: 0 | G199: 无 | H199: 是 | I199: 26.5 | J199: =VLOOKUP(D199,[1]sheet1!$A:$C,3,0) -> 240 | K199: 是 | L199: =VLOOKUP(D199,[1]sheet1!$A$1:$C$293,2,0) -> 2210 | M199: 是 | N199: 否 | O199: / | P199: 是 | Q199: 毕业 | R199: ¥0.00
A200: 195 | B200: 旅游管理 | C200: 1 | D200: 20220604065 | E200: 黄秋霞 | F200: 0 | G200: 无 | H200: 是 | I200: 26.5 | J200: =VLOOKUP(D200,[1]sheet1!$A:$C,3,0) -> 250 | K200: 是 | L200: =VLOOKUP(D200,[1]sheet1!$A$1:$C$293,2,0) -> 2210 | M200: 是 | N200: 否 | O200: / | P200: 是 | Q200: 毕业 | R200: ¥0.00
... 289 more rows

Sheet Sheet2

Sheet Sheet3
